{"text_format":"1","workbook":"xlsx","n_sheets":20,"sheets":["Welcome Page","Subtotal","Asiatic Premium","Caviar Petrossian","Cold Cuts Deli","Cheeses & Dairies","Chocolate Valrhona ","Condiments, Spices, Salt Peppe ","Frozen Ice Cream Pastries","Italian Premium","Miscellaneous","Premium Frozen Meat","Premium Frozen Seafood","Syrups Honey Jams tea coffee","Fruits and Veggies","Alcohol and Beers","Champagne"," Wine Cellar","Soft Drinks Juices Water","Wish Lists We'll Look!"],"not_rendered":{"charts":0,"images":2,"macros":1,"external_links":0,"defined_names":5,"comments":0,"pivot_tables":0},"unopened":[],"bounds":{"document_bytes":16777216,"sheet_cells":100000,"rows_first":2000,"rows_last":500,"rows_between":2000,"halvings":0,"cell_chars":16384,"cell_head_chars":4096},"cells_cut":0,"cells_raw":0,"read":"whole","date_system":"1900"}

{"sheet":"Welcome Page","index":0,"n_rows":50,"n_cols":5,"rows_kept":50,"cut":false,"hidden":false,"merged":[[26,3,26,4],[27,3,27,4],[28,3,28,4],[29,3,29,4],[43,3,43,4],[31,3,31,4],[49,3,49,4],[24,3,24,4],[20,3,20,4],[13,3,13,4],[19,3,19,4],[21,3,21,4],[22,3,22,4],[14,3,14,4],[15,3,15,4],[16,3,16,4],[17,3,17,4],[23,3,23,4],[45,3,45,4],[46,3,46,4],[47,3,47,4],[25,3,25,4]]}
[]
[]
[]
[]
[]
[]
[]
[]
[]
[]
[]
[]
[]
[null,null,null,"Back to Basics, Perfected: "]
[null,null,null,"Fresh Fruits, Crisp Vegetables, Fine Wines, Premium Spirits, "]
[null,null,null," and Gourmet Delicacies.","Back to Basics, Perfected: Fresh Fruits, Crisp Vegetables, Fine Wines, Premium Spirits, and Gourmet Delicacies—Your Exclusive, Elegant One-Stop Shop for Yachts and Villas, Where Quality Meets Sophistication."]
[null,null,null,"Your Exclusive, Elegant One-Stop Shop for Yachts and Villas,","Back to Basics, Perfected: Fresh Fruits, Crisp Vegetables, Fine Wines, Premium Spirits, and Gourmet Delicacies—Your Exclusive, Elegant One-Stop Shop for Yachts and Villas, Where Quality Meets Sophistication."]
[null,null,null," Where Quality Meets Sophistication.","Back to Basics, Perfected: Fresh Fruits, Crisp Vegetables, Fine Wines, Premium Spirits, and Gourmet Delicacies—Your Exclusive, Elegant One-Stop Shop for Yachts and Villas, Where Quality Meets Sophistication."]
[]
[null,null,null,"Dear Valued Clients And Esteemed Chefs,"]
[]
[null,null,null,"We Invite You To Explore Our Handpicked Catalog, Thoughtfully Designed To Meet Your Needs."]
[null,null,null,"Please Focus Solely On The Quantity Column For Your Orders."]
[null,null,null,"Kindly Note That Our Prices Are Subject To Change And Do Not Include Taxes."]
[]
[null,null,null,"Wishing You A Memorable Stay In Corsica, And Thank You For Your Understanding."]
[]
[null,null,null,"We Look Forward To Serving You And Ensuring You Have An Excellent Experience!"]
[]
[null,null,null,"The Chez Lucette Team"]
[]
[null,null,null,"Summary / Sommaire : 2026"]
[]
[null,null,null,"1. Asiatic Premium","9. Miscellaneous"]
[null,null,null,"2. Caviar & Petrossian Selection","10. Premium Frozen Meat"]
[null,null,null,"3. Cold Cuts & Deli","11. Premium Frozen Seafood & Smoked Fish"]
[null,null,null,"4. Cheeses & Dairy","12. Syrups, Honey, Jam, Tea & Coffee"]
[null,null,null,"5. Valrhona Chocolate ","13. Fresh Fruits & Vegetables"]
[null,null,null,"6. Condiments, Spices, Salts & Peppers","14. Alcohol & Beers"]
[null,null,null,"7. Frozen: Ice Cream, Pastries, Ice Cream Cakes","15. Champagne"]
[null,null,null,"8. Italian Premium","16. Wine Cellar"]
[null,null,null,null,"17. Soft Drinks, Juices & Water"]
[]
[null,null,null,"Your Special Requests : We're on the Case!"]
[]
[null,null,null,"For Orders, Please Send Your Completed Forms To :"]
[null,null,null,"Orderlucette@gmail.com"]
[null,null,null,"Or Contact Dona At +33 06 88 22 94 70"]
[]
[null,null,null,"Subtotal: This total excludes fruits, vegetables, TVA and any additional unlisted items."]

{"sheet":"Subtotal","index":1,"n_rows":32,"n_cols":7,"rows_kept":32,"cut":false,"hidden":false,"merged":[[31,1,31,5]]}
[]
[]
[]
[]
[]
[]
[]
[]
[]
[]
[null,null,null,null,null,"SUBTOTAL"]
[null,1,null,"Asiatic Premium",null,{"$f":"'Asiatic Premium'!G49","v":0}]
[null,{"$f":"B12+1","v":2},null,"Caviar & Petrossian Selection",null,{"$f":"'Caviar Petrossian'!G35","v":0}]
[null,{"$f":"B13+1","v":3},null,"Cold Cuts & Deli",null,{"$f":"'Cold Cuts Deli'!G26","v":0}]
[null,4,null,"Cheeses & Dairy",null,{"$f":"'Cheeses & Dairies'!G46","v":0}]
[null,5,null,"Valrhona Chocolate ",null,{"$f":"'Chocolate Valrhona '!G17","v":0}]
[null,6,null,"Condiments, Spices, Salts & Peppers",null,{"$f":"'Condiments, Spices, Salt Peppe '!G63","v":0}]
[null,7,null,"Frozen: Ice Cream, Pastries, Ice Cream Cakes",null,{"$f":"'Frozen Ice Cream Pastries'!G50","v":0}]
[null,8,null,"Italian Premium",null,{"$f":"'Italian Premium'!G75","v":0}]
[null,9,null,"Miscellaneous",null,{"$f":"Miscellaneous!G105","v":0}]
[null,10,null,"Premium Frozen Meat",null,{"$f":"'Premium Frozen Meat'!H62","v":0}]
[null,11,null,"Premium Frozen Seafood & Smoked Fish",null,{"$f":"'Premium Frozen Seafood'!H35","v":0}]
[null,12,null,"Syrups, Honey, Jam, Tea & Coffee",null,{"$f":"'Syrups Honey Jams tea coffee'!G39","v":0}]
[null,13,null,"Fresh Fruits & Vegetables",null,"-","not included"]
[null,14,null,"Alcohol & Beers",null,{"$f":"'Alcohol and Beers'!G62","v":0}]
[null,15,null,"Champagne",null,{"$f":"Champagne!G25","v":0}]
[null,16,null,"Wine Cellar",null,{"$f":"' Wine Cellar'!J39","v":0}]
[null,17,null,"Soft Drinks, Juices & Water",null,{"$f":"'Soft Drinks Juices Water'!G55","v":0}]
[]
[null,null,null,"SUBTOTAL",null,{"$f":"SUM(F12:F29)","v":0}]
[]
[null,"Subtotal: This total excludes fruits, vegetables, TVA and any additional unlisted items."]

{"sheet":"Asiatic Premium","index":2,"n_rows":49,"n_cols":7,"rows_kept":49,"cut":false,"hidden":false,"merged":[[39,0,40,0],[39,1,40,1],[39,2,40,2],[0,1,1,1],[0,2,1,2],[0,0,1,0],[25,0,26,0],[25,1,26,1],[25,2,26,2]]}
["Sigem","Asiatic Corner","Produits Asiatiques","Qtés","Poids","Prix","Subtotal"]
[null,null,null,"Qty","Weight","Price"]
["4300","Black Garlic Purée","Purée Ail Noir",null,"80 g",26.9,{"$f":"F3*D3","v":0}]
["4313","Coconut Milk Sweet","Lait Coco Dessert",null,"400 ml",6.5,{"$f":"F4*D4","v":0}]
["4601","Coconut Milk Cooking","Lait Coco Cuisine",null,"400 ml",6.5,0]
["4284","Dashi Liquid Yagissawa","Dashi Liquide Concentré Yagisawa",null,"360 ml",26.9,0]
["4588","Edamame Soja Frozen","Edamame Congelé",null,"1 kg",14.9,0]
[4317,"Ginger Pink For Sushi","Gingembre Rose Pour Sushi",null,"380 g",4.9000000000000004,0]
[4646,"Green Curry Paste","Pate De Curry Vert",null,"400 g",8.9,0]
["4288","Miso Red","Miso Rouge",null,"500 g",11.5,0]
["4287","Miso White Shiro Miso","Miso Blanc Shiro Miso",null,"500 g",11.5,0]
["4302","Nori Grilled Premium","Nori Grillé Premium",null,"50 leaf",11.5,0]
["4280","Mirin","Mirin",null,"360 ml",17.5,0]
["4296","Panko Bread-crimbs","Chapelure Panko",null,"200 g",5.5,0]
["4297","Panko Bread-crimbs","Chapelure Panko",null,"1 kg",10.9,0]
[4720,"Red Curry Paste","Pate De Curry Rouge",null,"400 g",7.9,0]
[4320,"Rice Crackers 22 Cm","Galette Riz 22 Cm 40 Feuilles",null,"400 g",5.9,0]
[7038,"Sesame Seeds White","Graines Sésames Blanc",null,"200 g",9,0]
[7035,"Sesame Seeds Black","Graines Sésames Noir",null,"200 g",9,0]
["4270","Tempura Mix","Melange Tempura",null,"600 g",12.5,0]
["4445","Tahini Cream","Creme Sesame Tahine",null,"450 g",7.5,0]
["4852","Tamarind Paste","Pate Tamarin",null,"454 g",9.9,0]
["4305","Wakame Dried Premium","Wakame Séché Premium",null,"16 g",11.9,0]
[7196,"Wasabi Paste Zakurigi","Pâte Zakurigi Wasabi",null,"42 g",5.9,0]
["4089","Yuzu Paste","Pâte De Yuzu",null,"90 g",12.9,0]
["Sigem","Sauce / Juice / Oil","Sauces / Jus / Huile","Qtés","Poids","Prix"]
[null,null,null,"Qty","Weight","Price"]
["7205","Nuoc Mâm Sauce","Sauce Nuoc Mâm",null,"250 ml",5,0]
["4323","Sweet Chili Sauce","Sauce Sweet Chili",null,"800 g",5.9,0]
["7013","Sweet And Sour Sauce","Sauce Aigre Douce",null,"720 ml",9.9,0]
["7032","Sesame Black Oil","Huile Sesame Noir",null,"300 ml",32.5,0]
[7028,"Soy Sauce 5 Years Old","Sauce Soja 5 Ans",null,"200 ml",53.9,0]
[7031,"Soy Sauce Sweet Makuchi","Soja Sucree Makuchi 150 Ml",null,"150 ml",12.9,0]
["4275","Soy Sauce Premium Ohitachi","Sauce Soja Premium Ohitachi",null,"100 ml",16.5,0]
[7040,"Smoked Soy Sauce","Sauce Soja Fumée",null,"450 g",32.9,0]
[4091,"Sauce Sriracha Fort","Sauce Sriracha Fort",null,"150 g",3.9,0]
["4279","Rice Vinegar For Sushi","Vinaigre Riz Pour Sushi",null,"360 ml",15.5,0]
["4273","Yuzu Juice Handmade","Jus Yuzu Préssé Main",null,"200 ml",29.9,0]
["4277","Yuzu & Ponzu Sauce Shibanuma","Sauce Yuzu & Ponzu Shibanuma",null,"300 ml",13.5,0]
["Sigem","Rice / Noodles","Riz / Nouilles","Qtés","Poids","Prix"]
[null,null,null,"Qty","Weight","Price"]
["4299","Noodles Soba Premium","Nouilles Soba Premium Sarrasin",null,"3 x125 g",5.5,0]
["4326","Rice Vermicelli","Vermicelle Riz",null,"400 g",6.9,0]
["4322","Sticky Rice","Riz Gluant",null,"1 kg",4,0]
["4324","Sushi Rice","Riz Sushi",null,"1 kg",5.5,0]
["7176","Somen Noodles - Flavored with Cherry Leaves","Nouilles Somen-Feuilles des cerisiers",null,"180 g",10,0]
[4677,"Udon Noodles","Nouilles Udon",null,"230 g",7.9,0]
[]
[null,null,null,null,null,"Welcome Page",{"$f":"SUM(G3:G47)","v":0}]

{"sheet":"Caviar Petrossian","index":3,"n_rows":35,"n_cols":8,"rows_kept":35,"cut":false,"hidden":false,"merged":[[0,0,1,0],[0,1,1,1],[0,2,1,2],[0,3,1,3],[0,4,1,4],[29,0,30,0],[29,1,30,1],[29,2,30,2],[29,3,30,3],[29,4,30,4],[23,0,24,0],[23,1,24,1],[23,2,24,2],[23,3,24,3],[23,4,24,4],[18,0,19,0],[18,1,19,1],[18,2,19,2],[18,3,19,3],[18,4,19,4],[14,0,15,0],[14,1,15,1],[14,2,15,2],[14,3,15,3],[14,4,15,4],[4,0,5,0],[4,3,5,3],[4,1,5,1],[4,2,5,2],[4,4,5,4]]}
["Sigem Code","Crab / Scallops / Eel","Crabe / St Jacques / Anguille","Qty","Poids / Weight","Prix","Subtotal"]
[null,null,null,null,null,"Price"]
[4260,"Kamtchatka Crab's Meat","Chair Crabe Kamtchatka",null,"200 g",120,{"$f":"F3*D3","v":0}]
[4259,"Unshelled Legs Crab Kamtchatka","Pattes Décortiquées Kamtchatka",null,"200 g",139,{"$f":"F4*D4","v":0}]
["Sigem Code","Caviar Petrossian","Caviar Petrossian","Qty","Poids / Weight","Prix"]
[null,null,null,null,null,"Price"]
[4237,"Steluga Imperial","Steluga Imperial",null,"50 g",189,0]
[4238,"Steluga Imperial","Steluga Imperial",null,"125 g",442,0]
[4235,"Beluga Imperial","Beluga Imperial",null,"50 g",530,0]
[4248,"Beluga Imperial","Beluga Imperial",null,"125 g",1320,0]
[4240,"Daurenki Imperial","Daurenki Imperial",null,"50 g",154,0]
[4241,"Daurenki Imperial","Daurenki Imperial",null,"125 g",372,0]
[4243,"Ossetra Imperial","Ossetra Imperial",null,"50 g",154,0]
[4244,"Ossetra Imperial","Ossetra Imperial",null,"125 g",372,0]
["Sigem Code","Foie Gras","Foie Gras","Qty","Poids / Weight","Prix"]
[null,null,null,null,null,"Price"]
[4262,"Duck Foie Gras","Foie Gras Canard Entier",null,"180 g",65,0]
[4261,"Goose Foie Gras","Foie Gras Entier Oie",null,"180 g",73,0]
["Sigem Code","Salmon","Saumon","Qty","Poids / Weight","Prix"]
[null,null,null,null,null,"Price"]
[4253,"Smoked Norway 6 Slices","Fumé & Tranché X 6",null,"300 g",66.900000000000006,0]
[4257,"Salmon Egg Royal Selection","Oeuf Saumon Royal",null,"50 g",21,0]
[4254,"Tsar Smoked Salmon Filet","Saumon Fumé Coupe Du Tsar",null,"180 g",48,0]
["Sigem Code","Tarama","Tarama","Qty","Poids / Weight","Prix"]
[null,null,null,null,null,"Price"]
[7007,"Tarama With Truffe","Tarama À La Truffe",null,"100 g",21,0]
[4249,"Tarama Caviar","Tarama Caviar",null,"100 g",26,0]
[4250,"Tarama Royal Crab","Tarama Crabe Royal",null,"100 g",18,0]
[4251,"Tarama Nature","Tarama Nature",null,"100 g",11,0]
["Sigem Code","Others","Autres","Qty","Poids / Weight","Prix"]
[null,null,null,null,null,"Price"]
[4264,"Mini Blinis","Mini Blinis",null,"18 pcs",7.9,0]
[4265,"Poutargua","Poutargue (œuf De Mulet)",null,"150 g env",40.5,0,"270 Euros / kg"]
[]
[null,null,null,null,null,"Welcome Page",{"$f":"SUM(G3:G33)","v":0}]

{"sheet":"Cold Cuts Deli","index":4,"n_rows":26,"n_cols":8,"rows_kept":26,"cut":false,"hidden":false,"merged":[[0,0,1,0],[0,1,1,1],[0,2,1,2],[19,0,20,0],[19,1,20,1],[19,2,20,2],[14,1,15,1],[14,2,15,2],[14,0,15,0]]}
["Sigem","Cold Cuts","Charcuterie Tranchée","Qtés","Poids","Price","Subtotal"]
[null,null,null,"Qty","Weight"]
["7221","Chorizo Jabugo","Chorizo Jabugo",null,"100 g",7.5,{"$f":"F3*D3","v":0}]
[8020,"Coppa Corsican Premium Label","Coppa Artisanale Corse",null,"500 g",29.9,{"$f":"F4*D4","v":0}]
[7223,"Cecina De Leon","Cecina De Leon",null,"80 g",15.9,0]
["4624","Ham Bellota 100% 5 Jotas","Jambon Bellota 5 Jotas",null,"70 g",39.9,0]
["7222","Ham Jabugo Triple X Hand Cut","Jambon Jabugo Triple X Coupe À La Main",null,"80 g",23.9,0]
["4839","Ham Cooked Superior 4 Slices","Jambon Cuit Superieur 4 Tranches",null,"240 g",8.1999999999999993,0]
[8021,"Lonzo Corsican Premium Label","Lonzo Artisanal Corse",null,"500 g",29.9,0]
[4829,"Mortadelle","Mortadelle",null,"140 g",6.2,0]
[4835,"Raw Ham 20 Slices","Jambon Sec 20 Tranches",null,"500 g",29.9,0]
[4621,"Sausage Slices Jabugo","Saucisson Tranches Jabugo",null,"100 g",7.25,0]
[4374,"Sausage Jabugo","Saucisson Jabugo",null,"500 g",22.9,0]
[4640,"Wagyu Beef Sliced","Boeuf Wagyu",null,"70 g",29.9,0]
["Sigem","Delicatessen Iberico","Charcuterie Iberique","Qtés","Poids","Price"]
[null,null,null,"Qty","Weight"]
["7077","Lean Truffle Sausage","Saucisson Maigre À La Truffe",null,"200 g",16.899999999999999,0]
["4576","Chorizo Pata Negra Spicy","Chorizo Pata Negra Piquant",null,"220 g",19.899999999999999,0]
["4563","Chorizo Pata Negra Spicy","Chorizo Pata Negra Piquant",null,"70 g",9.5,0]
["Sigem","Delicatessen Corsican","Charcuterie Corse Artisanale","Qtés","Poids","Estimated",null,"Price by Kilo"]
[null,null,null,"Qty","Weight","Price",null,"Prix par Kilo"]
["7220","Sausage Premium Label","Saucisson Artisanal",null,"+-500 g",{"$f":"58*0.5","v":29},0,65]
["4035","Coppa Corsican Premium Label","Coppa Artisanale",null,"+-600 g",{"$f":"58*0.6","v":34.799999999999997},0,65]
["4688","Lonzo Corsican Premium Label","Lonzo Artisanal",null,"+-1 kg",58,0,65]
[]
[null,null,null,null,null,"Welcome Page",{"$f":"SUM(G3:G24)","v":0}]

{"sheet":"Cheeses & Dairies","index":5,"n_rows":47,"n_cols":8,"rows_kept":47,"cut":false,"hidden":false,"merged":[[0,2,1,2],[18,2,19,2],[34,2,35,2],[34,0,35,0],[34,1,35,1],[0,0,1,0],[0,1,1,1],[18,0,19,0],[18,1,19,1]]}
["Sigem","Cheeses","Fromages","Qtés","Poids","Price","Subtotal"]
[null,null,null,"Qty","Weight","Prix"]
[4590,"Blue Cheese (roquefort)","Roquefort trache AOP",null,"100 g",6.9,{"$f":"F3*D3","v":0}]
["4589","Brie Of Meaux Farm Style","Brie De Meaux Fermier",null,"400 g",19,{"$f":"F4*D4","v":0}]
[4594,"Camembert Isigny","Camembert Isigny Aop",null,"250 g",10.5,0]
[4571,"Cheddar sliced cheese","Cheddar Tranché",null,"1 kg",29.9,0]
["4572","Comté AOP 18 months","Comté AOP 18 mois",null,"en coup *",43,{"$f":"F7*D7","v":0},"per kilo"]
["4598","Corsican Cheese Tome","Tome Corse",null,"en coup *",43,0,"per kilo"]
["4599","Corsican Cheese Tome Goat","Tome Corse Brebis",null,"en coup *",43,0,"per kilo"]
[4600,"Emmental Grounded","Emmental Râpé",null,"1 kg",18.7,0]
["4557","Feta Cheese","Feta",null,"400 g",16.5,0]
[7078,"Goat Cheese","Tommette Chevre",null,"en coup *",31.9,0,"per kilo"]
[4861,"Goat Cheese Ashen","Selles Sur Cher Cendrée Aop",null,"150 g",13.8,0]
[4862,"Goat Cheese White","Sainte Maure Blanc Aoc",null,"200 g",15.8,0]
["7046","Haloumi","Haloumi",null,"250 g",8.9,0]
[4802,"Philadelphia","Philadelphia",null,"300 g",7.9,0]
[7127,"St Felicien ( Cream Cheese Style)","St Felicien Fermier",null,"180 g",10.9,0]
[4392,"Tofu Firm","Tofu Ferme",null,"300 g",4.9000000000000004,0]
["Sigem","Dairies","Produits Laitiers","Qtés","Poids","Prix"]
[null,null,null,"Qty","Weight","Price"]
[4568,"Butter 1/2 Salt","Beurre Echire 1/2 Sel",null,"250 g",9.9,0]
[4569,"Butter Unsalted","Beure Doux Echire",null,"250 g",9.9,0]
[4550,"Double Cream 35 %","Créme Double 35 %",null,"1 l",14.5,0]
[4673,"Fresh Eggs Organic","Oeufs Frais Bio",null,"Unit",0.99,0]
[4551,"Fresh Milk 1/2","Lait Frais Demi",null,"1 l",4.2,0]
[4552,"Fresh Milk Intero","Lait Frais Entier",null,"1 l",4.2,0]
[4858,"Filo Pastry","Pâte Filo",null,"500 g",5.9,0]
[4565,"Ghee Butter","Beurre Ghee Clarifié",null,"400 g",21.5,0]
[4203,"Greek Yogurt","Yahourt À La Grecque",null,"500 g",6.9,0]
[4553,"Greek Yogurt","Yahourt À La Grecque",null,"125 g",2.8,0]
[4554,"Greek Yogurt Kolios","Yahourt À La Grecque Kolios",null,"150 g",2.5,0]
[4949,"Milk Full Long Conservation 1 l","Lait Uht Entier 1 l",null,"1 l X 6",17.8,0]
[4970,"Milk Semi Long Conservation 1 l","Lait Uht Demi-écrémé 1 l",null,"1 l X 6",17.5,0]
[4619,"Quail Eggs Fresh","Œufs De Caille Frais",null,"X 18",6.5,0]
["Sigem","Dairies - Bodier","Produits Laitiers - Bordier","Qtés","Poids","Prix"]
[null,null,null,"Qty","Weight","Price"]
[7011,"Butter 1/2 Salted","Beuure Plaquette 1/2 Sel",null,"250 g",9.9,0]
[7010,"Butter Unsalted","Beurre Doux Plaquette",null,"250 g",9.9,0]
[7020,"Yoghurt Plain/nature","Yaourts Nature",null,"125 g",2.5,0]
[7019,"Yoghurt Fruits Mango/passion Fruit /pitaya","Yaourts Fruits Mangue/passsion/pitaya",null,"125 g",2.9,0]
[7019,"Yoghurt Fruits Raspberry","Yaourts Fruits Framboise",null,"125 g",2.9,0]
[7019,"Yoghurt Fruits Blueberry","Yaourts Fruits Myrtilles",null,"125 g",2.9,0]
[7019,"Yoghurt Fruits Coconut","Yaourts Fruits Noix De Coco",null,"125 g",2.9,0]
[7019,"Yoghurt Vanilla Glass Jar","Yaourt Vanille",null,"125 g",2.9,0]
[]
["en coup *","Please enter the desired amount/weight",null,null,null,"Welcome Page",{"$f":"SUM(G3:G44)","v":0}]
[null,"Merci d’indiquer la quantité/poids souhaité"]

{"sheet":"Chocolate Valrhona ","index":6,"n_rows":17,"n_cols":7,"rows_kept":17,"cut":false,"hidden":false,"merged":[[0,0,1,0],[0,1,1,1],[10,4,11,4],[6,1,7,1],[6,2,7,2],[0,3,1,3],[0,4,1,4],[6,3,7,3],[6,4,7,4],[0,2,1,2],[10,0,11,0],[10,1,11,1],[10,2,11,2],[10,3,11,3],[6,0,7,0]]}
["Sigem","Valrhona Chocolate Beans","Valrhona Feves","Qty","Poids / Weight","Prix","Subtotal"]
[null,null,null,null,null,"Price"]
[4222,"Cocoa Powder","Poudre Cacao",null,"250 g",21,{"$f":"F3*D3","v":0}]
[4221,"Guajana 70 % Dark Chocolate Drops / Chips","Guajana 70% Dark Chocolate Fèves",null,"1 kg",53,{"$f":"F4*D4","v":0}]
[4027,"Ivory 35%","Ivoire 35%",null,"1 kg",53,0]
[4056,"Dulcey 35%","Dulcey 32%",null,"1 kg",53,0]
["Sigem","Valrhona Gift Box","Coffret Dégustation","Qty","Poids / Weight","Prix"]
[null,null,null,null,null,"Price"]
[4311,"32 Dark and Milk Chocolates Square","32 Carre de Chocolat Noir et Lait",null,"160 g",29.9,0]
[4223,"Gift Box - Chocolated-coated Almond and Hazelnut","Coffret Amande et Noisette enrobées Chocolat",null,"300 g",35,0]
["Sigem","Sosa : Kosher","Sosa : Kosher","Qty","Poids / Weight","Prix"]
[null,null,null,null,null,"Price"]
[4405,"Agar-agar","Agar-agar",null,"500 g",73.900000000000006,0]
[4545,"Lecithine Soja","Lecithine Soja",null,"400 g",42.9,0]
[4369,"Vanilla Pods","Vanille Gousse",null,"3 Sticks",15,0]
[]
[null,null,null,null,null,"Welcome Page",{"$f":"SUM(G3:G15)","v":0}]

{"sheet":"Condiments, Spices, Salt Peppe ","index":7,"n_rows":63,"n_cols":7,"rows_kept":63,"cut":false,"hidden":false,"merged":[[57,0,58,0],[57,1,58,1],[57,2,58,2],[26,0,27,0],[26,1,27,1],[26,2,27,2],[37,0,38,0],[37,1,38,1],[37,2,38,2],[17,0,18,0],[17,1,18,1],[17,2,18,2],[13,0,14,0],[13,1,14,1],[13,2,14,2],[0,0,1,0],[0,1,1,1],[0,2,1,2],[8,0,9,0],[8,1,9,1],[8,2,9,2]]}
["Sigem","Condiments","Condiments","Qtés",null,"Prix","Subtotal"]
[null,null,null,"Qty","Weight","Price"]
[7163,"Bbq Sauce Cowboy","Bbq Sauce Cowboy",null,"300 ml",6.9,{"$f":"F3*D3","v":0}]
[7201,"Gherkins","Cornichons",null,"190 g",3.2,{"$f":"F4*D4","v":0}]
[4494,"Gherkins Sweet & Sour","Cornichons Aigre-doux",null,"900 ml",6.2,0]
[4062,"Harissa From Tunisia Pot","Harissa Tunise Pot",null,"85 g",9.9,0]
[3001,"Mustard Grain Dupont","Moutarde Grain Dupont",null,"195 g",8.9,0]
[3005,"Mustard White Dupont","Moutarde Blanc Dupont",null,"195 g",8.9,0]
["Sigem","Cooking","Cusine","Qtés","Poids","Prix"]
[null,null,null,"Qty","Weight","Price"]
[4312,"Red Wine","Vin Rouge Cuisine",null,"25 cl",2.2000000000000002,0]
[4131,"Vanilla Madagascar Powder","Vanille Madagascar Poudre",null,"20 g",18.899999999999999,0]
[4312,"White Wine","Vin Blanc Cuisine",null,"25 cl",2.2000000000000002,0]
["Sigem","Flour","Farine","Qtés","Poids","Prix"]
[null,null,null,"Qty","Weight","Price"]
[4513,"Flour Type T 55","Farine T 55",null,"1 kg",3.5,0]
[4513,"Flour Type 00","Farine Type 00",null,"1 kg",3.5,0]
["Sigem","Juice And Stock","Jus Et Bouillon","Qtés","Poids","Prix"]
[null,null,null,"Qty","Weight","Price"]
[4017,"Ariake Beef Juice","Ariake Jus De Boeuf",null,"400 ml",22.9,0]
[4066,"Ariake Poultry Juice","Ariake Jus De Volaille",null,"400 ml",22.9,0]
[4064,"Ariake Shellfish Bouillon","Ariake Bouillon de Crustaces",null,"5 x 55 g",39.1,0]
[4065,"Ariake Veal Juice","Ariake Jus De Veau",null,"400 ml",29.9,0]
[4054,"Stock Chicken","Fond De Volaille",null,"100 g",12.9,0]
[4054,"Stock Fish","Fond Fumet De Poisson",null,"100 g",12.9,0]
[4054,"Stock Veal","Fond De Veau",null,"100 g",12.9,0]
["Sigem","Salt And Pepper","Sel Et Poivre","Qtés","Poids","Prix"]
[null,null,null,"Qty","Weight","Price"]
[4103,"Black Pepper Kampot","Poivre Noir Kampot",null,"70 g",11.9,0]
[7118,"Cayenne Pepper","Piment De Cayenne",null,"55 g",9.5,0]
[4104,"Long Pepper","Poivre Long",null,"50 g",9.9,0]
[4099,"White Pepper From Penja","Poivre Blanc De Penja",null,"70 g",11.9,0]
[4362,"Maldon Salt","Sel De Maldon",null,"250 g",11.9,0]
[4363,"Maldon Salt Smoked","Sel De Maldon Fume",null,"125 g",10.9,0]
[4474,"Salt Flower","Fleur De Sel",null,"125 g",7.5,0]
[4093,"Salt Guerande","Sel De Guerande",null,"1 kg",4.4000000000000004,0]
[7054,"Thin Pink Salt Of Himalaya Crystal","Sel Rose Cristaux Himalaya",null,"1 kg",6,0]
["Sigem","Spices, Seeds And Aromas","Épices, Graines Et Arômes","Qtés","Poids","Prix"]
[null,null,null,"Qty","Weight","Price"]
[4004,"Black Garlic","Ail Noir",null,"55 g",21.9,0]
[4940,"Candied Lemon","Citron Confit",null,"680 g",7.2,0]
[4020,"Cardamone Green","Cardamanone Verte",null,"40 g",10.5,0]
[4443,"Chia Seeds","Graines De Chia",null,"90 g",6.5,0]
[4129,"Cinnamon Sticks","Cannelle Bâton",null,"4 g",6.5,0]
[4019,"Cinnamon Powder","Cannelle Poudre",null,"20 g",8.9,0]
[4085,"Colombo Paste","Pâte De Colombo",null,"85 g",9.9,0]
[4028,"Combava Ground","Combava Poudre",null,"30 g",11.5,0]
[4950,"Coriander Grounded","Coriandre Poudre Moulu",null,"50 g",7.9,0]
[4041,"Cumin Organic Grounded","Cumin Moulu Bio",null,"60 g",8.9,0]
[4042,"Curcuma / Turmeric","Curcuma / Turmeric",null,"60 g",7.5,0]
[4059,"Ground Ginger","Gingembre En Poudre",null,"50 g",7.9,0]
[4058,"Jelly Spice Espelette","Gelée Piment Espelette Aoc",null,"90 g",12.5,0]
[4953,"Oregano","Origan",null,"30 g",10.9,0]
[4110,"Raz El Hanout","Raz El Hanout",null,"60 g",9.5,0]
[4111,"Safron Powder","Safran Poudre",null,"5 g",11.9,0]
[4095,"Spice Powder Espelette","Piment Espelette Poudre",null,"50 g",13.5,0]
[4051,"Tonka Feves","Fêve Tonka",null,"50 g",12.5,0]
["Sigem","Sugar","Sucre","Qtés","Poids","Prix"]
[null,null,null,"Qty","Weight","Price"]
[4125,"Brown Sugar","Sucre Roux Nature",null,"1 kg",8.5,0]
[4123,"Moscovado Sugar","Sucre Moscovado",null,"200 g",7.9,0]
[]
[null,null,null,null,null,"Welcome Page",{"$f":"SUM(G3:G61)","v":0}]

{"sheet":"Frozen Ice Cream Pastries","index":8,"n_rows":50,"n_cols":7,"rows_kept":50,"cut":false,"hidden":false,"merged":[[0,0,1,0],[0,1,1,1],[0,2,1,2],[14,0,15,0],[14,1,15,1],[14,2,15,2],[36,0,37,0],[36,1,37,1],[36,2,37,2],[22,0,23,0],[22,1,23,1],[22,2,23,2]]}
["Sigem","Frozen Miscellaneous","Congelé Divers","Qtés","Poids","Prix","Subtotal"]
[null,null,null,"Qty","Weight","Price"]
[4586,"Bun Burger Classic 12 cm","Pain Burger Classic 12 cm",null,"x 6",13.2,{"$f":"F3*D3","v":0}]
[4422,"Bun Burger Sesame 12 cm","Pain Burger Sesame 12 cm",null,"x 6",14.2,{"$f":"F4*D4","v":0}]
[8008,"Baguette Sandwich 140 g","Baguette Sandwich 140 g",null,"x 3",4.3,0]
[8007,"Ciabatta Olive Oil 50 g","Ciabatta Huile Olive 50 g",null,"unité",0.85,0]
[4424,"Sourdough Bread 50 g","Pain Levain 50 g",null,"x 60",52.9,0]
[4562,"Mini Danish Roll","Mini Pain Raisin Beurre A.O.P",null,"bag : 55 pcs",62.5,0]
[4561,"Mini Chocolate Pan","Mini Pain Chocolat Beurre A.O.P",null,"bag : 70 pcs",73.5,0]
[4560,"Mini Croissant","Mini Croissant Beurre A.O.P",null,"bag : 65 pcs",62.5,0]
["4974","Pancake 11 cm","Pancake 11 cm",null,"x 8",9.9,0]
[4683,"French Fries Mc Cain","Frites Mc Cain",null,"2.5 kg",12.9,0]
[4684,"Peas","Petit Pois",null,"2.5 kg",10.9,0]
[7003,"Spinach","Epinard",null,"2.52 kg",15.9,0]
["Sigem","Frozen Fruits Purée","Purée Fruits Congelées","Qtés","Poids","Prix"]
[null,null,null,"Qty","Weight","Price"]
[4165,"Lemon","Citron",null,"1 kg",19.899999999999999,0]
[4166,"Lime","Citron Vert",null,"1 kg",21.9,0]
[4171,"Passion Fruit","Fruit Passion",null,"1 kg",25.9,0]
[4169,"Mango","Mangue",null,"1 kg",24.9,0]
[4173,"Strawberry","Fraise",null,"1 kg",19.899999999999999,0]
[4174,"Raspbery","Framboise",null,"1 kg",27.9,0]
["Sigem","Artisanal Ice Cream","Glaces Artisanales","Qtés","Poids","Prix"]
[null,null,null,"Qty","Weight","Price"]
[4549,"Ice Cream Caramel & Salted Butter","Glace Arti. Caramel & Beurre Salé",null,"55 cl",11.9,0]
[4549,"Ice Cream Sorbet Mango","Sorbet Artisanal Mangue",null,"55 cl",11.9,0]
[4549,"Ice Cream Sorbet Corsican Clémentines","Sorbet Artisanal Clémentine Corse",null,"55 cl",11.9,0]
[4549,"Ice Cream Vanilla Tahiti","Glace Artisanale Vanille Tahiti",null,"55 cl",11.9,0]
[4549,"Ice Cream Chocolat","Glace Artisanale Chocolat",null,"55 cl",11.9,0]
[4549,"Ice Cream Straciatella","Glace Artisanale Stracciatella",null,"55 cl",11.9,0]
[4549,"Ice Cream Sorbet Corsican Strawberry","Sorbet Artisanal Fraise Corse",null,"55 cl",11.9,0]
[4549,"Ice Cream Yoghurt","Glace Artisanale Yahourt",null,"55 cl",11.9,0]
[4549,"Ice Cream Sorbet Organic Corsican Lemon","Sorbet Citron Corse Bio",null,"55 cl",11.9,0]
[4549,"Ice Cream Sicilian Pistacchio","Glace Artisanale Pistache Sicile",null,"55 cl",11.9,0]
[4549,"Ice Cream Sorbet Coco","Sorbet Artisanale Coco",null,"55 cl",11.9,0]
[4549,"Ice Cream Sorbet Framboise","Sorbet Artisanale Framboise",null,"55 cl",11.9,0]
["Sigem","Artisanal Ice Cream Cake","Gâteaux a la Glace - Artisanales","Qtés","Poids","Prix"]
[null,null,null,"Qty","Weight","Price"]
[4450,"Profiteroles - Vanilla Madagascar, Puff Pastry, Chocolate Sauce and Whipped Cream","Profiteroles - Glace de Madagascar, Choux Croustillanbts , Sauce Chocolate, Chantilly",null,"10 pax",44,{"$f":"F39*D39","v":0}]
[4458,"Bastia Cervioni - Hazelnut Ice Cream from Cervioni, Crispy Choux Pastry, Royal Hazelnut Sauce, Chocolate Sauce, Dulce Hazelnut, Chopped Hazelnuts, Meringue.","Bastia Cervioni - Glace Noisette de Cervioni, Pâte à Choux Croustillante, Sauce Noisette Royale, Sauce Chocolat, Dulce Noisette, Noisettes Hachées, Meringue.",null,"10 pax",44,0]
[4459,"Chocoline - Gianduja Ice Cream, Hazelnut Ice Cream from Piedmont, Royal Chocolate Sauce.","Chocoline - Glace Gianduja, Glace Noisette du Piémont, Sauce Chocolat Royale.",null,"10 pax",46,0]
[4501,"Sorbet - 100% Corse - Corsican Lemon Sorbet, Corsican Clementine Sorbet, Corsican Strawberry Sorbet, Meringue.","Sorbet - 100% Corse - Sorbet Citron Corse, Sorbet Clémentine Corse, Sorbet Fraise Corse, Meringue.",null,"10 pax",42,0]
[]
[]
[]
[]
[]
[]
[]
[null,null,null,null,null,"Welcome Page",{"$f":"SUM(G3:G42)","v":0}]

{"sheet":"Italian Premium","index":9,"n_rows":75,"n_cols":7,"rows_kept":75,"cut":false,"hidden":false,"merged":[[49,0,50,0],[29,1,30,1],[29,0,30,0],[0,1,1,1],[53,0,54,0],[53,1,54,1],[0,0,1,0],[53,2,54,2],[43,2,44,2],[49,2,50,2],[49,1,50,1],[43,1,44,1],[0,2,1,2],[43,0,44,0],[29,2,30,2],[21,0,22,0],[21,1,22,1],[21,2,22,2],[62,0,63,0],[62,1,63,1],[62,2,63,2],[67,0,68,0],[67,1,68,1],[67,2,68,2]]}
["Sigem","Antipasti & Biscuits","Antipasti & Biscuits","Qtés","Poids","Prix","Subtotal"]
[null,null,null,"Qty","Weight","Price"]
[7085,"Artichokes Slices Gina & Leo","Artichauts Tranchés Gine & Leo",null,"280 g",9.9,{"$f":"F3*D3","v":0}]
[7103,"Artichokes In Oil","Artichauts À L'huile",null,"290 g",21.9,{"$f":"F4*D4","v":0}]
[7097,"Carasau Bread","Pain Carasau",null,"450 g",12.9,0]
[4489,"Capers Stem With Tail Gina & Leo","Capres Tiges A Queue Gina & Leo",null,"300 g",10.1,0]
[4490,"Capers In Vinegar Gina & Leo","Capres En Vinaigre Gina & Leo",null,"150 g",8.3000000000000007,0]
[7089,"Ghiotina Rosemary","Ghiotina Romarin",null,"150 g",4.9000000000000004,0]
[7090,"Ghiotina Green Olive","Ghiotina Olive Verte",null,"150 g",4.9000000000000004,0]
[7091,"Gressini Butter","Gressin Au Beurre",null,"200 g",7.1,0]
[7092,"Gressini Olive","Gressin Olive",null,"200 g",7.1,0]
[4990,"Gressini Sesame","Gressin Sesame",null,"250 g",7.1,0]
[7094,"Olive Green Sicilia Tentazioni","Olive Verte Sicile Tentazioni",null,"270 g",9.5,0]
[7093,"Olive Bella Cerignola","Olive Bella Cerignola",null,"280 g",5,0]
[4463,"Olive Taggiashe Black Pitted","Olives Taggiashe Dénoyautés",null,"90 g",7,0]
[7095,"Pepper Yellow & Red Gina & Leo","Poivron Jaune Et Rouge Gina & Leo",null,"280 g",9.6999999999999993,0]
[4885,"Pesto Rosso Baita","Pesto Rouge Baita",null,"170 g",11.9,0]
[4984,"Pesto Basilico Ligure Baita","Pesto Basilico Ligure Baita",null,"520 g",12.1,0]
[4985,"Tomato San Marzano ( Tins)","Tomate San Marzano (conserve)",null,"400 g",6.7,0]
[7096,"Tomato Sundried Giovagnini","Tomaté Séchées Giovagnini",null,"290 g",8.3000000000000007,0]
[4959,"Tomato Sauce Passata Organic","Tomate Coulis Passata Bio",null,"680 g",7.4,0]
["Sigem","Vinegar Balsamic","Vinaigre Balsamique","Qtés","Poids","Prix"]
[null,null,null,"Qty","Weight","Price"]
[7142,"Balsamic White Gina & Leo","Balsamique Blanc Gina & Leo",null,"250 ml",17.7,0]
[4400,"Balsamic White Cream","Balsamique Creame Blanche",null,"250 ml",8.6,0]
[4711,"Balsamic Cream Of Modena","Creme Balsamique Modène",null,"250 ml",10.6,0]
[4628,"Gina & Leo Tradizionale Igp","Gina & Leo Igp",null,"250 ml",22.2,0]
[4500,"15 Years Old Dop Tradizionale","12 Ans D'age Dop",null,"100 ml",99,0]
[4112,"30 Years Old Dop Tradizionale","30 Ans D'age Dop",null,"100 ml",199,0]
["Sigem","Cheeses","Fromages","Qtés","Poids","Prix"]
[null,null,null,"Qty","Weight","Price"]
[4591,"Burratina","Burratina",null,"150 g",6.9,0]
[8023,"Burrata With Truffle","Burratta À La Truffe",null,"125 g",7.5,0]
[4993,"Gorgonzola Dop Mild","Gorgonzola Dop Doux",null,"200 g",7.5,0]
[4607,"Mozzarella Buffala","Mozzarella Buffala",null,"250 g",11.8,0]
[4100,"Mozarella Diced","Mozzarella En Des",null,"2,5 kg",31.9,0]
[4639,"Mascarpone","Mascarpone",null,"250 g",6.5,0]
[4612,"Ricotta Cheese","Ricotta Cheese",null,"250 g",4.9000000000000004,0]
[4109,"Pecorino Romano","Pécorino Romano",null,"250 g",16.5,0]
[7106,"Parmegiano Reggiano 24 Months","Parmesan Regiano 24 Mois",null,"500 g",60,0]
[7147,"Parmegiano Reggiano 36 Months","Parmesan Reggiano 36 Mois",null,"250 g",70,0]
[4983,"Parmegiano Reggiano Shaved Flakes Dop","Parmesan Reggiano Copeaux Dop",null,"500 g",24.9,0]
[7105,"Parmegiano Grated Reggiano","Parmesan Rapé Reggiano",null,"500 g",20.5,0]
["Sigem","Delicatessen & Cold Cuts","Charcuterie & Tranchée","Qtés","Poids","Prix"]
[null,null,null,"Qty","Weight","Price"]
[4987,"Bressaola Sliced Maletti","Bressaola Tranchée Maletti",null,"90 g",14.9,0]
[4318,"Nduja Di Spilinga","Nduja Di Spilinga ( Chorizo À Tartiner)",null,"170 g",9.6999999999999993,0]
[4989,"Pancetta Organic In Cube","Pancette Bio En Cubes",null,"100 g",5.8,0]
[7084,"Parma Ham Maletti Dop","Jambon Parme Maletti Dop",null,"90 g",13.3,0]
["Sigem","Fresh Pasta","Pâtes Fraiches","Qtés","Poids","Prix"]
[null,null,null,"Qty","Weight","Price"]
[4998,"Gnocchi","Gnocchi Pomme De Terre",null,"500 g",4.9000000000000004,0]
[4999,"Tagliatelle Fontaneto","Tagliatelle Fontaneto",null,"250 g",3.9,0]
["Sigem","Pasta Dry Home Made","Pâtes Artisanales","Qtés","Poids","Prix"]
[null,null,null,"Qty","Weight","Price"]
[4204,"Farfalle","Farfalle",null,"500 g",4.3,0]
[4119,"Fusilli Rustichella","Fusilli Rustichella",null,"500 g",6.9,0]
[7108,"Linguine Rustichella","Linguine Rustichella",null,"500 g",3.9,0]
[7153,"Pappardelle Rustichella (eggs)","Pappardelle Aux Oeufs Rustichella",null,"250 g",7.5,0]
[7109,"Penne Rustichella","Penne Rustichella",null,"500 g",6.9,0]
[7107,"Spagetti Rustichella","Spaghetti Rustichella",null,"500 g",6.9,0]
[7110,"Trofie Rustichella","Trofie Rustichella",null,"250 g",7.5,0]
["Sigem","Rice","Riz","Qtés","Poids","Prix"]
[null,null,null,"Qty","Weight","Price"]
[4416,"Rice Arborio In A Cotton Bag","Riz Arborio Sac Coton",null,"1 kg",8.5,0]
[4419,"Rice Carnaroli In A Cotton Bag","Riz Carnaroli Sac Coton",null,"1 kg",8.5,0]
[4417,"Rice - Black Rice Belvedere","Riz Noir Belvedere",null,"500 g",6,0]
["Sigem","Sauce Handmade","Sauces Artisanales","Qtés","Poids","Prix"]
[null,null,null,"Qty","Weight","Price"]
[7151,"Puttanesca (Caper, Olive, Tomato)","Puttanesca (Capres, Olive & Tomate)",null,"250 g",8,{"$f":"F70*D70","v":0}]
[7102,"Ketchup De La Baita","Ketchup De La Baita",null,"180 g",9.9,0]
[7152,"Arrabiata (Tomato, Spice)","Arrabiata (Tomate, Piment)",null,"250 g",8,0]
[7149,"Bolognaise","Bolognaise",null,"270 g",9.9,0]
[]
[null,null,"Directly Imported",null,null,"Welcome Page",{"$f":"SUM(G3:G73)","v":0}]

{"sheet":"Miscellaneous","index":10,"n_rows":105,"n_cols":7,"rows_kept":105,"cut":false,"hidden":false,"merged":[[51,0,52,0],[51,1,52,1],[51,2,52,2],[62,1,63,1],[70,2,71,2],[66,0,67,0],[66,1,67,1],[66,2,67,2],[56,0,57,0],[56,1,57,1],[70,0,71,0],[70,1,71,1],[62,0,63,0],[56,2,57,2],[62,2,63,2],[96,0,97,0],[96,1,97,1],[96,2,97,2],[74,2,75,2],[81,0,82,0],[81,1,82,1],[81,2,82,2],[74,0,75,0],[74,1,75,1],[0,0,1,0],[0,1,1,1],[0,2,1,2],[26,0,27,0],[26,1,27,1],[26,2,27,2],[4,0,5,0],[4,1,5,1],[4,2,5,2]]}
["Sigem","Bread Loaf","Pain De Mie","Qtés","Poids","Prix","Subtotal"]
[null,null,null,"Qty","Weight","Price"]
[4026,"Loaf Sliced Bread : Plain","Pain De Mie Nature",null,"550 g",3.9,{"$f":"F3*D3","v":0}]
[4026,"Loaf Sliced Bread : Whole","Pain De Mie Complet",null,"550 g",3.9,{"$f":"F4*D4","v":0}]
["Sigem","Cleaning Products And Accessories","Produits Ménagers Et Accessoires Menagers","Qtés","Poids","Prix"]
[null,null,null,"Qty","Weight","Price"]
[4825,"Air Spray Febreze Anti Allergens","Febreze Anti Allergenes",null,"500 ml",9.9,0]
[4905,"Aluminium Foil 0.40 X 200 m","Papier Alu 0.44 X 200 m",null,"1 pc",51.9,0]
[4049,"Assouplissant Linge Essentiel - ph 5.5","Clothes Fabric Softner - ph 5.5",null,"5 l",27.9,0]
[4869,"Bleach","Javel",null,"5 l",8.9,0]
[4909,"Cling Film 0.45 X 300 cm","Film Etirable 0.45 X 300 m",null,"1 pc",20.5,0]
[4981,"Cooking Spray","Spray De Cuisson",null,"250 ml",13.9,0]
[4105,"Dishwashing Liquid","Liquide vaisselle",null,"1 l - ph 7",3.9,0]
[4101,"Dishwashing Tablets - Sun Professional","Pastilles pour Lave-vaiselle - Sun Professionnel",null,"52 tablets",18.600000000000001,0]
[4873,"Feezer Bag Ultra Zip - 3 sizes                                          10 big : 30 x 40 cm                                       20 medium : 20 x 32 cm                                      20 small : 18 x 22 cm","Sac Congelation Ultra Zip - 3 taille                                          10 grand : 30 x 40 cm                                       20 moyen : 20 x 32 cm                                      20 petite : 18 x 22 cm",null,"1 pc",{"$f":"2.76*2.5","v":6.8999999999999995},0]
[4258,"Garbage Bag 100 l ","Sac Poubelle 100 l ",null,"25 pcs",7.5,0]
[4918,"Garbage Bag 50 l ","Sac Poubelle 50 l ",null,"15 pcs",4.9000000000000004,0]
[7000,"Garbage Bag 30 l ","Sac Poubelle 30 l ",null,"25 pcs",3.7,0]
[4921,"Gloves Small","Gants Petite",null,"100 pcs",13.9,0]
[4919,"Gloves Medium","Gants Medium",null,"100 pcs",13.9,0]
[4920,"Gloves Large","Gants Large",null,"100 pcs",13.9,0]
[4106,"Kitchen Paper Towels","Rouleau d’essuie‑tout",null,"3 rolls",4.9000000000000004,0]
[4149,"Lessive Liquid Textile - ph - 8.30","Liquid Laundry Detergent - ph - 8.30",null,"5 l",27.5,0]
[7001,"Sanitizer Sanytol Spray","Desinfectant Sanytol Spray",null,"500 ml",6.9,0]
[4808,"Sponge","Eponge",null,"3 pcs",3.9,0]
[4113,"Toilette Paper","Papier toilette",null,"8 rolls",5.5,0]
["Sigem","Dried : Vegetables / Mushrooms / Fruits","Produits Secs","Qtés","Poids","Prix"]
[null,null,null,"Qty","Weight","Price"]
[4139,"Almond Naja Organic","Amandes Naja Bio",null,"160 g",9.9,0]
[4141,"Almond Salted & Grilled","Amande Salée & Grillée",null,"150 g",10.5,0]
[4712,"Almond Powder","Poudre Amande",null,"150 g",10.5,0]
[4140,"Apricot Organic","Abricot Sec Bio",null,"230 g",12.9,0]
[4345,"Brazil Nuts Organic","Noix Du Bresil Bio",null,"150 g",14.5,0]
[4152,"Cashew Nuts Salted Organic","Noix Cajou Salée Bio",null,"150 g",10.5,0]
[4151,"Cashew Nuts Organic","Noix Cajou Bio",null,"150 g",10.5,0]
[4218,"Chia Seeds Organic","Graine de Chia Bio",null,"150 g",9.6999999999999993,0]
[4144,"Cranberry Organic","Canneberge Bio",null,"130 g",7.9,0]
[4161,"Fig Mini Organic ","Mini Figues Bio ",null,"290 g",12.5,0]
[4889,"Wood Mushroom Mix","Melange Forestier",null,"20 g",8.5,0]
[4143,"Godji Berry","Baie De Godji",null,"100 g",9.5,0]
[4160,"Grape Sultamine Organic","Raisin Sultanine Bio",null,"270 g",10.5,0]
[4150,"Hazelnut Italia","Noisette Italie",null,"150 g",11.5,0]
[4154,"Macadamia Nuits","Noix Macadamia",null,"150 g",14.5,0]
[4890,"Morels","Morilles",null,"15 g",27.9,0]
[4142,"Peanut Salted","Arachide Salée Marseille",null,"150 g",8.9,0]
[4155,"Pecan Nuts Organic","Noix De Pecan Bio",null,"120 g",10.5,0]
[4156,"Pine Nuts","Pignon De Pin",null,"140 g",14.5,0]
[4157,"Pistaccio Nuts Hulled Organic","Pistache Émondée Bio",null,"150 g",18.899999999999999,0]
[4158,"Pistaccio Salted","Pistache Salée",null,"200 g",10.9,0]
[4159,"Prune Pitted","Pruneau Sans Noyau",null,"330 g",10.5,0]
[4145,"Walnut Kernel Organic","Noix Cerneaux Bio",null,"150 g",10.9,0]
["Sigem","Cans / Tubes / Glass","Conserves / Tubes","Qtés","Poids","Prix"]
[null,null,null,"Qty","Weight","Price"]
[7170,"Chikpeas Bocal Picuezo","Pois-chiche Picuezo",null,"540 g",4.0999999999999996,0]
[4570,"Corn","Epis De Mais",null,"190 g",5.0999999999999996,0]
[7201,"Gherkins / Pickles Extra","Cornichons Extra Fin",null,"190 g",3.2,0]
["Sigem","Gourmet Olive Oil","Huile Olive Gourmet","Qtés","Poids","Prix"]
[null,null,null,"Qty","Weight","Price"]
[4370,"Extra Olive Oil White Truffle","Huile Olive Extra Truffe Blanche",null,"250 ml",18.5,0]
[7049,"Extra Virgin Olive Oil","Huile Olive Extra Vierge",null,"3 l",56.5,0]
[4024,"Extre Virgin Corsican Olive Oil Petraghje","Huile Olive Vierge Corse Petraghje",null,"3 l",99.9,0]
[4508,"Extra Virgin Corsican Olive Oil Petraghje","Huile Olive Vierge Corse Petraghje",null,"75 cl",32,0]
["Sigem","Lentil","Lentille","Qtés","Poids","Prix"]
[null,null,null,"Qty","Weight","Price"]
[4442,"Coral Lentil Organic","Lentille Corail Bio",null,"300 g",2.6,0]
[4857,"Lentil Black Beluga Organic","Lentille Beluga Noire Bio",null,"500 g",6.7,0]
["Sigem","Pearls","Perles","Qtés","Poids","Prix"]
[null,null,null,"Qty","Weight","Price"]
[4533,"Balsamic Pearl","Perle Vinaigre Balsamique",null,"200 g",39,0]
[4282,"Yuzu Pearls","Perles Yuzu",null,"200 g",39,0]
["Sigem","Quinoa","Quinoa","Qtés","Poids","Prix"]
[null,null,null,"Qty","Weight","Price"]
[7207,"Quinoa 3 Colors Organic","Quinoa Trio Bio",null,"500 g",6.7,0]
[7208,"Quinoa White Organic","Quinoa Blanc Bio",null,"500 g",7.8,0]
["Sigem","Rice","Riz","Qtés","Poids","Prix"]
[null,null,null,"Qty","Weight","Price"]
[4418,"Bomba Arroz Rice","Riz Bomba",null,"500 g",11,{"$f":"F77*D77","v":0}]
[4864,"Jasmine Rice","Riz Jasmin",null,"1 kg",4.5,0]
[4307,"Long Basmati Rice","Riz Long Basmati Elephant",null,"1 kg",6.5,0]
[4421,"Long Basmati Rice","Riz Long Basmati Elephant",null,"5 kg",26.5,0]
[4011,"Red Rice Organic Camargue","Riz Rouge Camargue Bio",null,"500 g",5.9,0]
["Sigem","Miscellaneous","Divers","Qtés","Poids","Prix"]
[null,null,null,"Qty","Weight","Price"]
[7202,"Hellman's Mayo","Mayo Hellman's",null,"404 g",7.8,0]
[4846,"Baking Powder","Levure Chimique",null,"1 kg",18.899999999999999,0]
[4439,"Brown Sugar","Cassonade",null,"750 g",4.9000000000000004,0]
[7206,"Semolina","Couscous Moyen",null,"1 kg",7.2,0]
[7211,"Brick Pastry Sheet","Feuilles De Brick",null,"170 g",3.3,0]
[4359,"Granola 2 Chocolates & Almond","Granola 2 Chocolats & Amandes Bio",null,"375 g",8.4,0]
[4466,"Sugar Cube","Sucre En Morceaux",null,"1 kg",3.1,0]
[4383,"Caster Sugar","Sucre En Poudre",null,"750 g",3.8,0]
[7056,"Icing Sugar","Sucre Glace",null,"500 g",4.9000000000000004,0]
[7212,"Red Beans","Haricot Rouge",null,"400 g",4.4000000000000004,0]
[7066,"Corn Flakes Organic","Corn Flakes Bio",null,"300 g",6.2,0]
[4367,"Peanut Butter","Beurre Cacahouéte",null,"340 g",5.6,0]
[7067,"Oatmeal Organic","Flocon Avoine Bio",null,"500 g",4.7,0]
["Sigem","Vinegar","Vinaigre","Qtés","Poids","Prix"]
[null,null,null,"Qty","Weight","Price"]
["7217","Cider Vinegar","Vinaigre Cidre",null,"50 cl",6.1,0]
[4711,"Balsamic Cream Of Modena","Creme Balsamique Modène",null,"250 ml",10.6,0]
[4400,"Balsamic Cream White","Creme Balsamique Blanche",null,"250 ml",8.6,0]
[4544,"Red Wine Vinegar Organic","Vinaigre Vin Rouge Bio",null,"50 cl",12,0]
[4548,"Sherry Vinegar Pedro Ximenez","Vinaigre Xeres Pedro Ximenez",null,"500 ml",11.9,0]
[]
[null,null,null,null,null,"Welcome Page",{"$f":"SUM(G3:G103)","v":0}]

{"sheet":"Premium Frozen Meat","index":11,"n_rows":62,"n_cols":8,"rows_kept":62,"cut":false,"hidden":false,"merged":[[0,0,1,0],[0,1,1,1],[0,2,1,2],[0,3,1,3],[0,4,1,4]]}
["Sigem","Premium Frozen Meat","Viande Congelée De Haute Qualité","Qty","Poids / Weight","Estimated Price ","Price","Subtotal"]
[null,null,null,null,null,null,"Per Kilo"]
[null,null,"Beef - Guest",null,2026]
[4346,"Argentine Ribeye","Entrecôte Argentine                      2 X 250 Gr / 300 Gr",null,"500 g / 600 g",{"$f":"79.9*0.6","v":47.940000000000005},79.900000000000006,{"$f":"F4*D4","v":0}]
[4682,"Black Angus Beef Ribeye (USA)","Entrecôte Bœuf Black Angus Usa                           ",null,"1.5 kg - 2.5 kg",{"$f":"123.9*2","v":247.8},123.9,{"$f":"F5*D5","v":0}]
[4483,"Australian Wagyu Ribeye 8+ — 2 x 300 g","Entrecôte Wagyu Australien 8+      2 X 300 Gr",null,"600 g",{"$f":"269*0.6","v":161.4},269,0]
[7115,"Argentine Sirloin / Striploin — 2 x 300 g","Faux Filet Argentin                       2 X 300 Gr",null,"600 g",{"$f":"74.9*0.6","v":44.940000000000005},74.900000000000006,0]
[8201,"Argentine Beef Tenderloin","Filet Bœuf  Argentin",null,"2 kg +",{"$f":"99.9*2","v":199.8},99.9,0]
[8202,"USA / Australian Angus Tomahawk","Tomahawk Angus Australien / Etats Uni",null,"1.2 kg - 1.6 kg",{"$f":"1.6*112.9","v":180.64000000000001},112.9,0]
[null,null,"Hachés Premium","Qty","Poids / Weight","Estimated Price ","Price Per Kilo"]
[4341,"Burger Wagyu","Burger Wagyu              1 x 170 Gr",null,"170 g",{"$f":"72*0.17","v":12.24},72,0]
[4343,"Burger Black Angus","Burger Black Angus      1 x 200 Gr",null,"200 g",{"$f":"44.9*0.2","v":8.98},44.9,0]
[null,null,"Agneau","Qty","Poids / Weight","Estimated Price ","Price Per Kilo"]
[4025,"Lamb Shank","Souris D'Agneau",null,"2 x 330 g",{"$f":"54*0.66","v":35.64},54,0]
[4491,"Rack of Lamb","Carré Agneau Néttoyé              2 X 4 Côtes",null,"500 / 700 g",{"$f":"64.9*0.6","v":38.940000000000005},64.900000000000006,0]
[4344,"Whole Bone-in Leg of Lamb","Gigot Agneau Avec Os",null,"2.5 kg +/-",{"$f":"49*2.5","v":122.5},49,0]
[null,"Duck","Canard","Qty","Poids / Weight","Estimated Price ","Price Per Kilo"]
[8011,"Duck Breast","Magret De Canard",null,"380/400 g",{"$f":"31*0.38","v":11.78},31,0]
[8012,"Lobe Of Duck Foie Gras","Lobe De Foie Gras De Canard",null,"500 g env",{"$f":"113*0.5","v":56.5},113,0]
[null,null,"Porc","Qty","Poids / Weight","Estimated Price ","Price Per Kilo"]
[4349,"Boneless Pork Loin Roast","Rôti de Longe de Porc - Sans Os",null,"2 - 2.5 kg",{"$f":"27.9*2.25","v":62.774999999999999},27.9,0]
[6092,"Iberian Pluma","Pluma Ibérico",null,"500 / 800 g",{"$f":"59.9*0.8","v":47.92},59.9,0]
[4434,"Pork Chops","Côte de Porc                            2 x 180 Gr / 200 Gr",null,"360 g / 400 g",{"$f":"25.2*0.2","v":5.04},25.2,0]
[4347,"Pork Tenderloin","Filet Mignon de Porc",null,"450 / 600 g",{"$f":"29.9*0.6","v":17.939999999999998},29.9,0]
[null,null,"Veau","Qty","Poids / Weight","Estimated Price ","Price Per Kilo"]
[4032,"Veal Chops - 4 x 300 Gr","Cote De Veau                            4 x 300 Gr",null,"1.2 kg",{"$f":"64.9*1.2","v":77.88000000000001},64.900000000000006,0]
[4481,"Veal Escalopes - 2 x 180 Gr / 200 Gr","Escalope de Veau                    2 X 180 Gr / 200 Gr",null,"360 g / 400 g",{"$f":"56*0.4","v":22.400000000000002},{"$f":"28*2","v":56},0]
[4485,"Veal Quasi Medallions - 2 x1 80 Gr","Pavé Quasi De Veau                  2 X 180 Gr                   ",null,"360 g",{"$f":"69.9*0.36","v":25.164000000000001},69.900000000000006,0]
[4482,"Veal Tenderloin","Filet de Veau ",null,"1 kg +",74,{"$f":"37*2","v":74},0]
[null,"Guest","Poulet  Label Rouge Élevé Plein Air","Qty","Poids / Weight","Estimated Price ","Price Per Kilo"]
[null,null,"Guest"]
[4484,"Free-Range Chicken Breast","Filet de Poulet - Fermier ",null,"2 kg",{"$f":"43.9*2","v":87.8},43.9,{"$f":"F32*D32","v":0}]
[4486,"Free-Range Chicken Supreme, Skin On","Suprême Fermier Avec Peau ",null,"around 1 kg ",{"$f":"39.9*2","v":79.8},39.9,0]
[7250,"Free-Range Chicken Thighs","Cuisses de Poulet - Fermier ",null,"2 kg ",{"$f":"29.9*2","v":59.8},{"$f":"11.5*2.6","v":29.900000000000002},0]
[4072,"Free-Range Chicken Thighs, Boneless, Skin On","Cuisses de Poulet - Fermier Desosse - Avec Peau",null,"2 kg",{"$f":"34.9*2","v":69.8},34.9,0]
[4272,"Whole Free-Range Chicken","Entiére Poulet Fermier ",null,"1.5 kg",{"$f":"24.9*1.5","v":37.349999999999994},24.9,0]
[null,null,"Crew","Qty","Poids / Weight","Estimated Price ","Price Per Kilo"]
[4205,"Chicken Breast","Filet de Poulet - Jaune ",null,"2 kg",{"$f":"29.9*2","v":59.8},29.9,0]
[4390,"Chicken Supreme, Skin On","Suprême Jaune Avec Peau ",null,"around 2 kg ",{"$f":"26.9*2","v":53.8},26.9,0]
[4216,"Chicken Thighs","Cuisses de Poulet - Jaune ",null,"2 kg ",{"$f":"17.9*2","v":35.799999999999997},17.899999999999999,0]
[4201,"Chicken Thighs, Boneless, Skin On","Cuisses de Poulet - Jaune Desosse - Avec Peau",null,"2 kg",{"$f":"21.9*2","v":43.8},21.9,0]
[null,null,"Petit Déjeuner","Qty","Poids / Weight","Estimated Price ","Price Per Kilo"]
[4334,"Artisanal Fresh Sliced Smoked Bacon","Poitrine Fumée Tranchée  Artisanale Frais ",null,"750 g",{"$f":"29.9*0.75","v":22.424999999999997},29.9,0]
[4310,"Pre-Cooked Mini Pork Chipolatas","Mini Chipo Porc  Précuites                                  ",null,"700 / 750 g",{"$f":"32.5*0.75","v":24.375},32.5,0]
[4891,"Pre-Cooked Mini Veal/Chicken Sausages","Mini Saucisses Veau/Volaille   Précuites                                  ",null,"700 / 750 g",{"$f":"32.5*0.75","v":24.375},32.5,0]
[]
[null,null,"Notre Partenaire De Choix : Metzger Frères",null,"Welcome Page"]
[]
[]
[null,"Premium PRE-COOKED \"sous vide\" Meat cooked on low temperature","Viande Pre cuite sous vide à basse temperature ",null,"Welcome Page"]
[]
["Sigem","Lamb","Agneau","Qty","Poids / Weight","Estimated Price ","Price Per Kilo"]
[4039,"Lamb Shank","Souris d'Agneau",null,"2 x 330 g",46.2,69.900000000000006,{"$f":"F53*D53","v":0}]
[4039,"Lamb Shank","Souris d'Agneau",null,"4 x 330 g",92.3,69.900000000000006,{"$f":"F54*D54","v":0}]
[null,null,"Veau","Qty","Poids / Weight","Estimated Price ","Price Per Kilo"]
[4031,"Veal Rib","Cote de Veau",null,"4 x 300 g",95.9,79.900000000000006,{"$f":"F56*D56","v":0}]
[null,"Veal","Porc","Qty","Poids / Weight","Estimated Price ","Price Per Kilo"]
[4063,"Iberian Pork Secreto","Secreto Cochon Iberique",null,"300-800  Gr",55.9,69.900000000000006,{"$f":"F58*D58","v":0}]
[]
[]
[]
[null,null,"Notre partenaire de choix : JA Gastronomie",null,"Welcome Page",null,null,{"$f":"SUM(H4:H58)","v":0}]

{"sheet":"Premium Frozen Seafood","index":12,"n_rows":35,"n_cols":9,"rows_kept":35,"cut":false,"hidden":false,"merged":[[21,0,22,0],[10,1,11,1],[10,0,11,0],[10,2,11,2],[7,7,8,7],[7,4,8,4],[0,0,1,0],[0,1,1,1],[0,2,1,2],[7,0,8,0],[7,1,8,1],[7,2,8,2],[12,8,13,8]]}
["Sigem","Qwehli Frozen Seafood Sashimi Grade - Flash Frozen","QWEHLI Produits de la mer surgelés, qualité sashimi - Surgelé flash","Qtés","Poids","Estimated","Price Per Kilo","Subtotal"]
[null,null,null,"Qty","Weight","Price","Prix Par Kilo"]
[6090,"Sona Black Tiger Prawns 16/20","Sona Crevette Tigree Crue Black Qwehli 16/20",null,"2 kg",99,49.5,{"$f":"F3*D3","v":0}]
[4573,"Patagonian Toothfish","Legine Australe Filet",null,"2 kg - 2.5 kg",298,149,0]
[4092,"Meagre / Salmon Bass Filet","Maigre / Salmon Bass Filet ",null,"1 kg - 1.5 kg",86.25,69,0]
[6024,"Whole Gutted Dover Sole ","Sole Entière Éviscérée",null,".800 kg - 1 kg",71.2,89,0]
[6053,"Blue Lobster kit","Homard Bleu kit",null,"500 g / 600 g",59,109,0,"OUT OF STOCK"]
["Sigem","Flash Frozen Fillets","Filets Poisson Flashfrozen","Qtés","Estimated Weight","Estimated","Price Per Kilo"]
[null,null,null,"Qty",null,"Price","Prix Par Kilo"]
[8001,"Yellow Tail Hamachi Fillet Loin","Sériole Japonaise Hamachi",null,"1.3- 1.7 kg",{"$f":"69*1.5","v":103.5},69,{"$f":"F10*D10","v":0}]
["Sigem Code","Frozen Crustacean","Crustacés Congelés","Qtés","Poids","Estimated","Price Per Kilo"]
[null,null,null,"Qty","Weight","Price","Prix Par Kilo"]
[4526,"Carabineros","Carabineros",null,"400 g",54.9,137.25,{"$f":"F13*D13","v":0}]
[4479,"Carabineros Hoso U10","Carabineros U10",null,"1 kg",129,129,{"$f":"F14*D14","v":0}]
[8006,"Wild Gambas Cameron Giant 2/4","Sauvage Gambas Cameron Géante 2/4 ",null,"800 g",71,88.9,0]
[6091,"Wild Gambas 8/12","Sauvage Gambas 8/12 ",null,"800 g",34.799999999999997,43.5,0]
["6064","Langoustines 10/15 Frozen On Board Scotland","Langoustines Ecosse Congelées Bord 10/15",null,"1 +/- kg",63.9,63.9,0]
["6066","Octopuss Cooked Tentacle ","Tentacules Poulpe Cuite ",null,"0.24 - 0.30 kg",19.899999999999999,66,0]
["8009","Scallops No Coral","Noix St Jacques Sans Corail",null,"1 kg",83.9,83.9,0]
["8010","Shrimps \"easy\" Cooked Peeled Tail","Queue De Crevettes Cuites \"easy\"",null,"400 g",17.899999999999999,44.9,0]
["6071","Squid Cleaned Patagonia 9/12","Calamar Nettoyé Patagonie 9/12",null,"900 g",25.9,28.8,0]
["Sigem Code","Smoked Fish, Jars & The Sea ","Poisson Fumé, Conserves De La Mer","Qtés","Poids","Estimated"]
[null,"Not Frozen","Pas Congele","Qty","Weight","Price"]
["6036","Crab Meat","Chair Crabe Claw (pattes Et Corps)",null,"454 g",43.9,null,0]
["4375","Ortiz Sardines Old Style With Olive Oil","Sardines À L'ancienne & Huile Olive Ortiz",null,"140 g",10,null,0]
["4380","Ortiz Full Plain Tuna Filet","Filet Thon Germon Naturel Ortiz",null,"220 g",13.9,null,0]
["4377","Ortiz Sardines Old Style Nautral","Sardines À L'ancienne Ortiz",null,"190 g",9.9,null,0]
["4381","Ortiz Ventresca White Tuna In Oil","Ventresca Thon Blanc Ortiz",null,"120 g",19.5,null,0]
["4382","Anchovy With Olive Oil","Anchois A L'huile D'olive",null,"95 g",17.899999999999999,null,0]
["4378","Ortiz White Tuna Germon In Oil","Thon Blanc Germon A L'huile Ortiz",null,"220 g",13.5,null,0]
["6040","Squid Ink Natural","Encre Seiche Naturelle",null,"90 g",10.9,null,0]
["4524","Tuna Garum","Garum De Thon",null,"100 ml",26.9,null,0]
["4387","Tobikko Orange","Tobikko Orange",null,"100 g",15.5,null,0]
[]
[null,null,null,null,null,"Welcome Page",null,{"$f":"SUM(H3:H33)","v":0}]

{"sheet":"Syrups Honey Jams tea coffee","index":13,"n_rows":39,"n_cols":7,"rows_kept":39,"cut":false,"hidden":false,"merged":[[0,1,1,1],[0,2,1,2],[0,0,1,0],[28,0,29,0],[28,1,29,1],[28,2,29,2],[14,0,15,0],[14,1,15,1],[14,2,15,2],[23,0,24,0],[23,1,24,1],[23,2,24,2]]}
["Sigem Code","Syrups & Honeys & Jams","Sirop & Miel & Confitures","Qtés","Poids","Prix","Subtotal"]
[null,null,null,"Qty","Weight","Price"]
[4408,"Thyme Honey","Miel De Thym",null,"250 g",13,{"$f":"F3*D3","v":0}]
[4404,"Maple Sirop","Sirop Erable",null,"250 ml",7.2,{"$f":"F4*D4","v":0}]
[4402,"Greek Forest Honey Liquid","Miel Foret Grecque Liquide",null,"470 g",14.9,0]
[4406,"Manuka Honey Iaa 5+","Miel De Manuka Iaa 5+",null,"250 g",39.9,0]
[4409,"Jam Abricot","Confiture Abricot",null,"320 g",8.9,0]
[7173,"Jam Blackberry","Confiture Mûres",null,"320 g",9.9,0]
[7172,"Jam Wild Blueberry","Confiture Myrtilles",null,"320 g",9.9,0]
[4410,"Jam Peach","Peche De Vigne",null,"320 g",9.9,0]
[4411,"Jam Strawberry","Confiture Fraise",null,"320 g",9.5,0]
[4412,"Jam Fig","Confiture Figue",null,"320 g",9.5,0]
[4414,"Jam Raspberry","Confiture Framboises",null,"320 g",9.9,0]
[4301,"Agave Sirup","Sirop Agave",null,"250 g",8,0]
["Sigem","Tea Damman","Thé X 24 Sachets","Qtés","Poids","Prix"]
[null,null,null,"Qty","Weight","Price"]
[4389,"Thé Earl Grey Black","Thé Noir Earl Grey Damman",null,"48 g",22.5,0]
[4391,"Black Darjeeling Damman","Thé Noir Darjeeling Damman",null,"48 g",22.5,0]
[4128,"Black English Breakfast Tea","The English Breakfast Noir",null,"48 g",22.5,0]
[4393,"Green Tea With Mint","Thé Vert À La Menthe",null,"48 g",22.5,0]
[7185,"Matcha Tea Organic","Thé Matcha Bio Fuji",null,"50 g",20,0]
[4700,"Matcha Green Tea Terre Exo","The Matcha Vert Terre Exo",null,"40 g",17.899999999999999,0]
[4395,"Gunpowder Green Tea","Thé Vert Gunpowder",null,"48 g",22.5,0]
["Sigem","Infusion","Infusion","Qtés","Poids","Prix"]
[null,null,null,"Qty","Weight","Price"]
[4675,"Camomille","Camomille X 24 Sachets",null,"48 g",22.5,0]
[8003,"Verbena","Verveine",null,"48 g",22.5,0]
[4960,"Damman Flavored Herbal Tea","Damman Tisane Des Merveilles",null,"48 g",22.5,0]
["Sigem","Coffee","Café","Qtés","Poids","Prix"]
[null,null,null,"Qty","Weight","Price"]
[4397,"Illy Coffee Beans","Cafe Illy Grain",null,"250 g",17.5,0]
[4398,"Illy Decaf Grounded","Décaf Moulu Illy",null,"250 g",17.5,0]
[4399,"Illy Coffee Grounded","Café Moulu Illy",null,"250 g",17.5,0]
[4014,"Nespresso Roma","Nespresso Roma",null,"10 pods",7.9,0]
[4014,"Nespresso Volluto","Nespresso Volluto",null,"10 pods",7.9,0]
[4014,"Nespresso Ristretto","Nespresso Ristretto",null,"10 pods",7.9,0]
[4014,"Nespresso Décafeinato","Nespresso Décafeinato",null,"10 pods",7.9,0]
[]
[null,null,null,null,null,"Welcome Page",{"$f":"SUM(G3:G37)","v":0}]

{"sheet":"Fruits and Veggies","index":14,"n_rows":102,"n_cols":11,"rows_kept":102,"cut":false,"hidden":false,"merged":[[3,0,3,4],[53,0,53,4],[226,0,226,4],[225,0,225,4],[100,6,100,10]]}
["Fruits And Vegetables",null,null,null,null,null,"Fruits","Unités","Kilo","Tray","Preparation"]
["Welcome Page",null,null,null,null,null,"Kumqwat"]
[null,null,null,null,null,null,"Litchi/ Lychee"]
["Chambre Froide 0 - 4 °/ Cold Room 0 - 4 °",null,null,null,null,null,"Loquat"]
["Champignon / Mushroom","125 Gr","Kilo","Caisse Tray","Preparation",null,"Mangoustan"]
["Enoki",null,null,null,null,null,"Physalis"]
["Enryngii",null,null,null,null,null,"Papaye/ Papaya"]
["Portobello",null,null,null,null,null,"Papaye A Râper"]
["Pleurote/ Oyster Mushroom",null,null,null,null,null,"Pitaya"]
["Paris Blanc/ Button White",null,null,null,null,null,"Raisin Vert / Green Grape"]
["Paris Crème/ Button Cream",null,null,null,null,null,"Raisin Rouge / Red Grape"]
["Shitake",null,null,null,null,null,"Tamarin"]
["Shimenji",null,null,null,null,null,"Graine Germée/ Cress","Barquette Punnet","Plateau",null,"Preparation"]
["Mini Legumes / Baby Veggies","Barquette Punnet","Kilo",null,"Preparation",null,"Affila"]
["Aubergine/ Eggplant",null,null,null,null,null,"Daikon"]
["Betterave/ Beetroot",null,null,null,null,null,"Ghoa"]
["Courgette/ Zucchini",null,null,null,null,null,"Sakura"]
["Carrote Orange/orange Carrot",null,null,null,null,null,"Shiso"]
["Carrote Jaune/ Yellow Carrot",null,null,null,null,null,"Tahoon"]
["Carrote Violet/ Purple Carrot",null,null,null,null,null,"Vene"]
["Endive",null,null,null,null,null,"Betterave/ Beetroot"]
["Fenouil/ Fennel",null,null,null,null,null,"Poireau/ Leek"]
["Panais/ Parsnip",null,null,null,null,null,"Herbes / Herbs","Bouquet/ Bunch","1 Bag = 150 G",null,"Preparation"]
["Poireaux/ Leek",null,null,null,null,null,"Aneth / Dill"]
["Légumes / Veggies","Barquette Punnet","Kilo",null,"Preparation",null,"Basilic"]
["Ail Pelé / Peeled Garlic 1 Kg",null,null,null,null,null,"Ciboulette / Chives"]
["Broccolini",null,null,null,null,null,"Coriandre / Coriander"]
["Citron Caviar/ Finger Lime",null,null,null,null,null,"Cerfeuil / Chervil"]
["Fleur Comestible / Edible Flow",null,null,null,null,null,"Citronelle / Lemongrass"]
["Fleur Courgette / Zucchini Flow",null,null,null,null,null,"Estragon / Tarragon"]
["Haricot Vert / Green Bean 500 Gr",null,null,null,null,null,"Laurier / Laurel"]
["Pois Gourmand / Snow Peas 500 G",null,null,null,null,null,"Menthe / Mint"]
["Pousse Soja / Soya Beans 500 Gr",null,null,null,null,null,"Persil / Parsley"]
["Piment Rouge / Red Chili",null,null,null,null,null,"Persil Plat / Flat Parsley"]
["Salty Fingers",null,null,null,null,null,"Romarin / Rosemary"]
["Oyster Leave",null,null,null,null,null,"Sauge / Sage"]
["Fruits Rouge / Berries","125 Gr","Kilo","Tray","Preparation",null,"Verveine / Verbena"]
["Fraise / Strawberry",null,null,null,null,null,"Salades / Salads","Unités","125 Gr","Kilo","Preparation"]
["Mara Des Bois / Wild Strawberry",null,null,null,null,null,"Chêne Rouge / Red Oak"]
["Framboise / Rasberry",null,null,null,null,null,"Chêne Vert / Green Oak"]
["Groseille / Red Current",null,null,null,null,null,"Cresson / Cress"]
["Mûre / Blackberry",null,null,null,null,null,"Epinard / Spinach"]
["Myrtille / Blueberry",null,null,null,null,null,"Endive"]
["Cerise / Cherry",null,null,null,null,null,"Endive Rouge / Red"]
["Fruits","Unit","Kilo","Tray","Preparation",null,"Laitue Frisée/leaf Lettuce"]
["Carambole / Starfruit",null,null,null,null,null,"Laitue Iceberg"]
["Combava",null,null,null,null,null,"Laitue Escarole"]
["Feuille Banane / Leaf X20",null,null,null,null,null,"Mesclun"]
["Fruit Passion",null,null,null,null,null,"Batavia"]
["Figue Noire / Black Fig",null,null,null,null,null,"Mâche / Lamb Lettuce"]
["Figue Verte / Green Fig",null,null,null,null,null,"Roquette / Rocket"]
["Grenadille",null,null,null,null,null,"Sucrine/ Cos Lettu(1x6)"]
["Goyave / Guava",null,null,null,null,null,"Trévise / Raddicchio"]
["Chambre Froide 0 - 8 °/ Cold Room 0 - 8 °",null,null,null,null,null,"Légumes / Veggies","Pièce","Kilo","Caisse","Preparation"]
["Agrumes / Citrus","Unités","Kilo","Caisse Tray","Preparation",null,"Choux Chinois / Chinese Cab"]
["Citron / Lemon",null,null,null,null,null,"Celeri Rave / Celeriac"]
["Citron Vert / Lime",null,null,null,null,null,"Celeri Branche / Leaf Celery"]
["Orange",null,null,null,null,null,"Carotte"]
["Orange À Jus / For Juice",null,null,null,null,null,"Carotte Fane"]
["Pamplemousse / Grapefruit",null,null,null,null,null,"Carotte Couleur"]
["Fruits","Unités","Kilo","Caisse Tray","Preparation",null,"Concombre"]
["Ananas / Pineaple",null,null,null,null,null,"Fenouil / Fennel"]
["Abricot / Apricot",null,null,null,null,null,"Jalapenos"]
["Amande / Almond",null,null,null,null,null,"Melon Vert / Green"]
["Avocat / Avocado",null,null,null,null,null,"Melon Corse"]
["Banane",null,null,null,null,null,"Melon Accent"]
["Banane Mini",null,null,null,null,null,"Melon Jaune / Yellow"]
["Kiwi",null,null,null,null,null,"Melon Charentais"]
["Kiwi Jaune / Yellow",null,null,null,null,null,"Navet / Turnip"]
["Kiwano",null,null,null,null,null,"Onion Jaune/yellow"]
["Mangue / Mango",null,null,null,null,null,"Onion Blanc / White"]
["Mirabelle Plum",null,null,null,null,null,"Onion Rouge / Red"]
["Nectarine Jaune / Yellow",null,null,null,null,null,"Pak Choy"]
["Nectarine Plate/ Flat",null,null,null,null,null,"Panais / Parsnip"]
["Noix Coco / Coconut",null,null,null,null,null,"Pastèque/watermelon"]
["Pomme / Aple Golden",null,null,null,null,null,"Poivron Rouge/red Pepper"]
["Pink Lady",null,null,null,null,null,"Poivron Jaune / Yellow Pepper"]
["Pomme / Aple Gala",null,null,null,null,null,"Poivron Vert / Green Peeper"]
["Pomme / Aple Granny",null,null,null,null,null,"Poireau / Leek"]
["Poire / Pear Abatte",null,null,null,null,null,"Radis / Raddish"]
["Poire / Pear Comice",null,null,null,null,null,"Patates / Potato","Pièce","Kilo",null,"Preparation"]
["Poire / Pear William",null,null,null,null,null,"Agria"]
["Pêche Jaune / Yellow Peach",null,null,null,null,null,"Agata"]
["Pêche Blanche / Peach",null,null,null,null,null,"Artemis"]
["Prune Rouge/ Red Plum",null,null,null,null,null,"Binje / Mash"]
["Prune Jaune / Yellow Plum",null,null,null,null,null,"Charlotte"]
["Rhubarbe",null,null,null,null,null,"Grenaille"]
["Légumes / Veggies","Pièce","Kilo","Caisse/ Tray","Preparation",null,"Terre"]
["Aubergine / Eggplant",null,null,null,null,null,"Au Four / Oven"]
["Artichaut / Artichoke",null,null,null,null,null,"Ratte / Fingerling"]
["Avocat / Avocado",null,null,null,null,null,"Rosevalt"]
["Ail",null,null,null,null,null,"Douce / Sweet"]
["Betterave S/vide X 4 Beetroot Vaccum X 4",null,null,null,null,null,"Vitelotte"]
["Betterave Orange/beetroot Orange",null,null,null,null,null,"Tomates / Tomato","Punnet","Kilo","Tray","Preparation"]
["Betterave / Beetroot",null,null,null,null,null,"Coktail"]
["Butternut",null,null,null,null,null,"Grappe / Wine"]
["Chioggia",null,null,null,null,null,"Roma"]
["Courgette / Zucchini",null,null,null,null,null,"Tomberry Jaune / Yellow"]
["Courgette Ronde / Rond Zucchini",null,null,null,null,null,"Noir Crimée / Black Crimea"]
["Choux Fleur / Cauliflower",null,null,null,null,null,"Notes: Special Request"]
["Choux Vert / Green Cauliflower"]
["Choux Rouge / Red Cauliflower"]

{"sheet":"Alcohol and Beers","index":15,"n_rows":62,"n_cols":7,"rows_kept":62,"cut":false,"hidden":false,"merged":[[0,6,1,6],[50,6,51,6],[0,0,1,0],[0,1,1,1],[0,2,1,2],[0,3,1,3],[0,5,1,5],[50,0,51,0],[50,1,51,1],[50,2,51,2],[50,3,51,3],[50,5,51,5]]}
["Sigem Code","Alcool","Conditionning","Qty",null,"Price","Subtotal"]
[]
[5507,"Angostura Bitter","20 cl",null,null,32,{"$f":"F3*D3","v":0}]
[5516,"Aperol","1 l",null,null,38,{"$f":"F4*D4","v":0}]
[5726,"Baileys","70 cl",null,null,24,{"$f":"F5*D5","v":0}]
[5697,"Black Café","70 cl",null,null,20,{"$f":"F6*D6","v":0}]
[5529,"Campari Red","1 l",null,null,39,0]
[5526,"Cognac N° 29 Tesseron","70 cl",null,null,543,0]
[5525,"Cognac N° 53 Tesseron","70 cl",null,null,277,0]
[5524,"Cognac N° 76 Tesseron","70 cl",null,null,125,0]
[5530,"Cointreau","70 cl",null,null,37,0]
[5534,"Fernet Branca","70 cl",null,null,39,0]
[4514,"Gin French - San Roccu","70 cl",null,null,59,0]
[5679,"Gin Gardener","70 cl",null,null,68,0]
[5537,"Gin Hendricks ","70 cl",null,null,45,0]
[5661,"Gin Dry Sipsmith London","70 cl",null,null,54,0]
[5538,"Gin Tanquerey 0% alcohol","70 cl",null,null,35,0]
[5543,"Grand Marnier Cordon Rouge","70 cl",null,null,55,0]
[5756,"Grappa Amarone 40°","70 cl",null,null,59,0]
[5552,"Japanese Whisky Hakushu 12 Years - Anniversary Bottle","70 cl",null,null,290,0]
[5548,"Japanese Whisky Hibiki Harmony","70 cl",null,null,130,0]
[5337,"Johny Walker Blue Label","70 cl",null,null,229,0]
[5555,"Limoncello 28° Lazzaroni","50 cl",null,null,42,0]
[5506,"Lagavulin 08 Years","70 cl",null,null,63,0]
[5557,"Noilly Prat","75 cl",null,null,26,0]
[5508,"Pimm's","1 l",null,null,23,0]
[4365,"Rhum Embargo","70 cl",null,null,54,{"$f":"F27*D27","v":0}]
[5560,"Ramos Pinto Porto 10 Ans","75 cl",null,null,49,0]
[5572,"Rhum Zacapa Solera","70 cl",null,null,99,0]
[5725,"Rhum Zacapa Xo","70 cl",null,null,179,0]
[5594,"Scotland The Macallan 12 Years","70 cl",null,null,155,0]
[5699,"Tequila Casamigos Anejo","70 cl",null,null,97,0]
[5567,"Tequila Casamigos Blanco","70 cl",null,null,62,0]
[5629,"Tequila Clase Azul Reposado","70 cl",null,null,350,0]
[5511,"Tequila Don Julio 1942","70 cl",null,null,350,0]
[5728,"Tequila Volcan X.A","70 cl",null,null,290,0]
[5729,"Tequila Don Julio Reposado","70 cl",null,null,79,0]
[5633,"Tequila Mezcal Casamigos","70 cl",null,null,114,0]
[5503,"Tequila Patron Reposado","70 cl",null,null,95,0]
[5502,"Tequila Patron Anejo","70 cl",null,null,110,0]
[5504,"Tequila Patron Platinium","70 cl",null,null,350,0]
[5509,"Triple Sec Curacao","1 l",null,null,21,0]
[5579,"Vodka Beluga Noble","70 cl",null,null,59,0]
[5535,"Vodka Beluga Gold","70 cl",null,null,180,0]
[5580,"Vodka Belvedere","70 cl",null,null,49,0]
[5517,"Vodka Ciroc Blue","70 cl",null,null,60,0]
[5002,"Vodka Ciroc Mango","70 cl",null,null,60,0]
[5004,"Vodka Ciroc Red Berry","70 cl",null,null,60,0]
[5582,"Vodka Greygoose","70 cl",null,null,68,{"$f":"F49*D49","v":0}]
[5510,"Vodka Le Philtre","70 cl",null,null,61,0]
["Beer","Biere","Conditionning","Qty",null,"Price"]
[]
[5634,"Corona","24 x 35.5 cl",null,null,79,0]
[5635,"Colomba White Corsican Beer","24 x 25 cl",null,null,56,0]
[5636,"Desperados","24 x 33 cl",null,null,89,0]
[5638,"Heineken Bottles","24 x 25 cl",null,null,39,0]
[5704,"Ichnusa","24 x 33 cl",null,null,49,0]
[5514,"Peroni Nastro Azzuro","24 x 25 cl",null,null,69,0]
[4325,"Pietra Corsican Ipa","24 x 25 cl",null,null,89,0]
[5639,"Pietra Corsican Beer Glass Bottles","24 x 25 cl",null,null,89,0]
[]
[null,"Welcome Page",null,null,null,null,{"$f":"SUM(G3:G60)","v":0}]

{"sheet":"Champagne","index":16,"n_rows":25,"n_cols":7,"rows_kept":25,"cut":false,"hidden":false,"merged":[[0,6,1,6],[0,0,1,0],[0,1,1,1],[0,2,1,2],[0,3,1,3],[0,5,1,5]]}
["Sigem Code","Champagne","Conditionning","Qty",null,"Price"]
[]
[5605,"Bollinger Brut","75 cl",null,null,64,{"$f":"F3*D3","v":0}]
[5606,"Bollinger Rosé","75 cl",null,null,82,{"$f":"F4*D4","v":0}]
[5610,"Bollinger Magnum Brut","1.5 l",null,null,139,0]
[5609,"Bollinger Magnum Rosé","1.5 l",null,null,182,0]
[5611,"Billecart Brut","75 cl",null,null,59,0]
[5612,"Billecart Rosé","75 cl",null,null,84,0]
[5001,"Dom Perignon Brut 2012","75 cl",null,null,390,0]
[5616,"Dom Perignon Rosé 2006","75 cl",null,null,495,0]
[5618,"Laurent Perrier Brut","75 cl",null,null,49,0]
[5619,"Laurent Perrier Rosé","75 cl",null,null,99,0]
[5620,"Louis Roederer Crystal Brut","75 cl",null,null,620,0]
[5621,"Louis Roederer Crystal Rosé","75 cl",null,null,320,0]
[5622,"Louis Roederer Brut","75 cl",null,null,61,0]
[5623,"Louis Roederer Rosé","75 cl",null,null,91,0]
[5682,"Louis Roederer Blanc","75 cl",null,null,99,0]
[5732,"Moët & Chandon Ice Impérial","75 cl",null,null,71,0]
[5628,"Moët & Chandon Reserve Impérial","75 cl",null,null,59,0]
[5624,"Ruinart Brut Blanc De Blanc","75 cl",null,null,120,0]
[4431,"Ruinart Rosé","75 cl",null,null,120,0]
[5761,"Veuve Cliquot Brut Carte Jaune","75 cl",null,null,47,0]
[5754,"Veuve Cliquot Rosé","75 cl",null,null,65,0]
[]
[null,"Welcome Page",null,null,null,null,{"$f":"SUM(G3:G24)","v":0}]

{"sheet":" Wine Cellar","index":17,"n_rows":39,"n_cols":10,"rows_kept":39,"cut":false,"hidden":false,"merged":[]}
["Merlot - Bordeaux","Year","Price","Order","Subtotal","Rosé French","Year","Price","Order","Subtotal"]
["Esprit de Pavie",2018,31,null,{"$f":"D2*C2","v":0},"Whispering Angel",2024,29,null,{"$f":"I2*H2","v":0}]
["La Siren de Giscours",2019,60,null,{"$f":"D3*C3","v":0},"Miraval",2024,29,null,{"$f":"I3*H3","v":0}]
["La Confession ",2016,68,null,0,"Ott",2022,33,null,0]
["La Dominique ",2016,97,null,0,"Minuty 281",2022,60,null,0]
["Aromes de Pavie",2016,139,null,0,"Minuty Or",2022,35,null,0]
["Cabernet Sauvignon - Bordeaux","Year","Price","Order",null,"Rosé Magnum 1,5 l",null,"Price","Order"]
["St Estephe De Pez",2015,80,null,0,"Minuty Or",2022,85,null,0]
["La Croix Beaucaillou",2010,94,null,0,"Minuty 281",2022,120,null,0]
["Pichon Comtesse Réserve",2018,87,null,0,"Red Corsican Wine","Year","Price","Order"]
["St Julien Lagrange Grand Cru Classé",2015,110,null,0,"Buzzo Rouge",2023,38,null,0]
["St Julien Gruaud Larose Grand Cru Classé",2015,145,null,0,"Clo Venturi Rouge",2025,35,null,0]
["Pinot Noir - Burgundy","Year","Price","Order",null,"Casteddu Saparale Rouge",2024,25,null,0]
["Les Maysonnier",2023,35,null,{"$f":"D14*C14","v":0},"Suarte Rouge",2025,59,null,0]
["Mercurey",2023,62,null,0,"White Corsican Wine",null,"Price","Order"]
["Clos de la Feguine",2019,110,null,0,"Clo Venturi Blanc",2025,39,null,0]
["Clos des Mouches 1ER Cru",2018,117,null,0,"Buzzo Blanc",2024,29,null,0]
["1er cru La Platière",2018,132,null,0,"Suarte Blanc",2022,59,null,0]
["Chardonnay - Burgundy","Year","Price","Order",null,"Rosé Corsican Wine",null,"Price","Order"]
["St Vincent - V.Girardin",2022,33,null,{"$f":"D20*C20","v":0},"Buzzo Rose",2024,19,null,0]
["Chablis Fevre",2022,41,null,0,"Clo Venturi Rose",2024,29,null,0]
["Pouilly Fuissé Prieur",2020,55,null,0,"Suarte Rose",2024,35,null,0]
["Chablis  1er Cru Fevre",2020,58,null,0,"Italian Wines",null,"Price","Order"]
["Chablis Grand Cru Blanchot",2019,125,null,0,"Pinot Grigio ","White",54,null,0]
["Meursault Perrière 1er Cru",2017,132,null,{"$f":"D25*C25","v":0},"Chianti Peppoli - Red",2020,37,null,0]
["Chassagne Montrachet",2022,139,null,0,"La Braccesca Montepuiciano - Red",2019,41,null,0]
["Puligny Montrachet 1 Er Cru Prieur",2022,192,null,0]
["Sauvignon Blanc - Loire","Year","Price","Order",null,"Prosecco Minos",null,19.899999999999999,null,0]
["Chateaux de Sancerre",2018,41,null,{"$f":"D29*C29","v":0},"Prosecco Valdobbiadene Docg",null,16.899999999999999,null,0]
["Pouilly Fumé Langlois / La Doucette",2023,55,null,{"$f":"D30*C30","v":0}]
["Syrah - Rhône Valley","Year","Price","Order"]
["Crozes-Hermitage Jaboulet",2018,55,null,{"$f":"D32*C32","v":0}]
["Les Becarses Cote Rotie",2021,108,null,{"$f":"D33*C33","v":0}]
[]
[null,null,null,null,{"$f":"SUM(E2:E33)","v":0},null,null,null,null,{"$f":"SUM(J2:J34)","v":0}]
[null,null,null,null,null,"Welcome Page"]
[]
[]
[null,null,null,null,null,null,null,null,null,{"$f":"J35+E35","v":0}]

{"sheet":"Soft Drinks Juices Water","index":18,"n_rows":55,"n_cols":8,"rows_kept":55,"cut":false,"hidden":false,"merged":[[0,6,1,6],[16,6,17,6],[44,6,45,6],[44,0,45,0],[44,1,45,1],[44,2,45,2],[44,3,45,3],[44,5,45,5],[16,3,17,3],[16,5,17,5],[38,3,39,3],[0,0,1,0],[0,1,1,1],[0,2,1,2],[0,3,1,3],[0,5,1,5],[38,0,39,0],[38,1,39,1],[16,0,17,0],[16,1,17,1],[16,2,17,2]]}
["Sigem Code","Water","Conditionning","Qty",null,"Price","Subtotal"]
[]
[4186,"Acqua Panna Bottle - sports cap","6 x 75 cl",null,null,9.9,{"$f":"F3*D3","v":0}]
[4181,"Acqua Panna Bottle","6 x 1,5 l",null,null,12.9,{"$f":"F4*D4","v":0}]
[4187,"Acqua Panna Bottle","24 x 50 cl",null,null,36,0]
[4184,"Fiji Water","24 x 33 cl",null,null,59,{"$f":"F6*D6","v":0}]
[4183,"Fiji Water","24 x 50 cl",null,null,71,0]
[4182,"Fiji Water","12 x 1 l",null,null,71,0]
[6098,"Coco Water Vavai","12 x 33 cl",null,null,39.9,0]
[7006,"Local Still Water : Zilia","6 x 1.5 l",null,null,5.9,0]
[7002,"Local Still Water : Zilia","6 x 50 cl",null,null,6.9,0]
[7023,"Evian Plastic Bottle","6 x 1 l",null,null,9.9,0]
[4193,"Evian Plastic Bottle","24 x 50 cl",null,null,25.9,0]
[4068,"Evian Plastic Bottle (sport cap)","12 x 33 cl",null,null,10.9,0]
[7080,"Orezza Sparkling Water","6 x 1 l",null,null,13.9,0]
[7009,"San Pellegrino","6 x 50 cl",null,null,6.9,0]
["Sigem Code","Drinks","Conditionning","Qty",null,"Price"]
[]
[4804,"Apple Juice Organic","75 cl",null,null,4.8,0]
[5640,"Coca Cola Cans","24 x 33 cl",null,null,39.9,0]
[5641,"Coca Cola Zero Cans","24 x 33 cl",null,null,39.9,0]
[4208,"Cramberry Juice","1 l",null,null,4.9000000000000004,0]
[4208,"Cramberry Juice Less Sugar","1 l",null,null,4.9000000000000004,0]
[4366,"Cocktail Multifruits (12 Fruits)","1 l",null,null,7.5,0]
[4076,"Fanta Orange Cans","24 x 33 cl",null,null,39.9,0]
[4717,"Fever Tree Ginger Ale","24 x 20 cl",null,null,59.9,0]
[5700,"Fever Tree Tonic","24 x 20 cl",null,null,59.9,0]
[4308,"Fever Tree Ginger Beer","24 x 20 cl",null,null,59.9,0]
[5683,"Fever Tree Elderflower Tonic Water","24 x 20 cl",null,null,59.9,0]
[4306,"Fever Tree Bitter Lemon","24 x 20 cl",null,null,59.9,0,"out of stock"]
[4309,"Fever Tree Soda Water","24 x 20 cl",null,null,59.9,0]
[4209,"Ice Tea Peach","24 x 33 cl",null,null,39.9,0]
[4210,"Liptonic","24 x 33 cl",null,null,39.9,0]
[4214,"Orangina Cans","24 x 33 cl",null,null,39.9,0]
[4455,"Orange Juice Organic","75 cl",null,null,7.3,0]
[4493,"Pineaple Juice Organic","75 cl",null,null,7.4,0]
[4212,"Perrier Cans","24 x 33 cl",null,null,29.1,0]
[4211,"Red Bull","24 x 25 cl",null,null,72,0]
["Sigem","Milk Vegetal","Poids","Qty",null,"Prix"]
[null,null,"Weight",null,null,"Price"]
[4427,"Almond Milk Organic","1 l",null,null,6.6,0]
[4428,"Oat Milk Organic","1 l",null,null,3.7,0]
[4863,"Coco Milk","1 l",null,null,5.5,0]
[4429,"Soy Milk Organic","1 l",null,null,4.7,0]
["Sigem Code","Juices \" Patrick Font\"","Conditionning","Qty",null,"Price"]
[]
[4810,"Mangue / Mango Organic","1 l",null,null,9.5,0]
[4148,"Nectar Poire Williams","1 l",null,null,8.9,0]
[4806,"Orange Organic","1 l",null,null,9.9,0]
[4809,"Pamplemousse / Grapefruit","1 l",null,null,9.5,0]
[4805,"Pomme Rainette / Apple","1 l",null,null,9.9,0]
[4811,"Raisin Rouge / Red Grape","1 l",null,null,9.9,0]
[4807,"Tomate","1 l",null,null,6.9,0]
[]
[null,"Welcome Page",null,null,null,null,{"$f":"SUM(G3:G53)","v":0}]

{"sheet":"Wish Lists We'll Look!","index":19,"n_rows":44,"n_cols":4,"rows_kept":44,"cut":false,"hidden":false,"merged":[[15,0,15,3],[16,0,16,3],[17,0,17,3]]}
[]
[]
[]
[]
[]
[]
[]
[]
[]
[]
[]
[]
[]
[]
[]
["Welcome to your Wish List! "]
["Here, you can request special items or ingredients not currently listed."]
["Some requests may be difficult to source in Corsica, but we will do our best to deliver."]
[]
[]
[null,"Description","Weight/ Size","Qty"]
[]
[]
[]
[]
[]
[]
[]
[]
[]
[]
[]
[]
[]
[]
[]
[]
[]
[]
[]
[]
[]
[]
[null,"Welcome Page"]